{"text_format":"3","workbook":"xlsx","n_sheets":6,"sheets":["Instructions","Participant  Information","Project Information","Project Tracking","Lists","21CSC-Members"],"not_rendered":{"images":2,"macros":1,"external_links":1,"defined_names":30},"read":"whole","date_system":"1900"}

{"sheet":"Instructions","index":0,"n_rows":17,"n_cols":2,"rows_kept":17}
[]
[]
[null,"Public Lands Corps Tracking Form"]
[]
[null,"Please complete requested information on all three tabs of this spreadsheet."]
[null,"In the \"Participant Information\" tab, please provide information for each Public Lands Corps participant you’ve engaged."]
[null,"In the \"Project Information\" tab, please provide information on each of the projects in which you’ve engaged Public Lands Corps participants."]
[null,"In the \"Project Tracking\" tab, please track the number of hours each participant has worked on each of the projects tracked."]
[null,"Tracking sheet should be completed quarterly and sent via secure email to: WOVolServ@fs.fed.us"]
[]
[null,"Incomplete provision of the information requested in this form may result in in participants not being able to gain the privileges offered by completion of the program."]
[]
[null,"Burden Statement"]
[null,"According to the Paperwork Reduction Act of 1995, an agency may not conduct or sponsor, and a person is not required to respond to a collection of information unless it displays a valid OMB control number.  The valid OMB control number for this information collection is 0596-New.  The time required to complete this information collection is estimated to average six hours, including the time for reviewing instructions, searching existing data sources, gathering and maintaining the data needed, and completing and reviewing the collection of information.  The U.S. Department of Agriculture (USDA) and U.S. Department of the Interior prohibit discrimination in all programs and activities on the basis of race, color, national origin, gender, religion, age, disability, political beliefs, sexual orientation, and marital or family status.  (Not all prohibited bases apply to all programs.)  Persons with disabilities who require alternative means for communication of program information (Braille, large print, audiotape, etc.) should contact USDA’s TARGET Center at 202-720-2600 (voice and TDD). To file a complaint of discrimination, write USDA, Director, Office of Civil Rights, 1400 Independence Avenue, SW, Washington, DC 20250-9410 or call (800) 795-3272 (voice) or (202) 720-6382 (TDD).  USDA and USDI are equal opportunity providers and employers."]
[]
[null,"Privacy Act Statement"]
[null,"The data collected for the PLC spreadsheet would fall under the Forest Service’ End-User Computer Environment (or EUCE) information system.  EUCE is an accredited system with a corresponding, signed and approved Privacy Impact Assessment (PIA).  The EUCE PIA is required by OMB Memorandum 03-22, which provides guidance for implementing the privacy provisions of the E-Government Act of 2002. The password protected file will be stored on a fully encrypted laptop, only being accessed by authorized Forest Service employees working as part of the administration of the Volunteer and Service program in the Forest Service’s Washington Office. "]

{"sheet":"Participant  Information","index":1,"n_rows":198,"n_cols":18,"rows_kept":198}
["PUBLIC LANDS CORPS PARTICIPANT INFORMATION FORM"]
["  Partner:    ",{"$nulls":3},"Submission Date:  ",{"$nulls":3},"Name, Title,                                      Contact Information:"]
[]
["Participant"]
["Last Name","First Name","Middle Initial","Permanent Residence \nZip code","Email Address","Date of Birth MM/DD/YYYY","Gender","Ethnicity","Race - 1","Race - 2","Education Level Completed","College/University Name","Major","Military/Veteran Status"," Career Goals","Skills and abilities","Total Hours Worked","Full Name"]
[]
[{"$nulls":9},"Black or African American"]
[{"$nulls":16},{"$f":"SUMIF('Project Tracking'!$A$8:$A$208,'Participant  Information'!R8,'Project Tracking'!$F$8:$F$200)","v":{"v":0,"d":"0.00"}},{"$f":"CONCATENATE(B8,\" \",C8,\" \",A8)","v":"  "}]
[{"$nulls":16},{"$f":"SUMIF('Project Tracking'!$A$8:$A$208,'Participant  Information'!R9,'Project Tracking'!$F$8:$F$200)","v":{"v":0,"d":"0.00"}},"  "]
[{"$nulls":16},{"$f":"SUMIF('Project Tracking'!$A$8:$A$208,'Participant  Information'!R10,'Project Tracking'!$F$8:$F$200)","v":{"v":0,"d":"0.00"}},"  "]
[{"$nulls":16},{"$f":"SUMIF('Project Tracking'!$A$8:$A$208,'Participant  Information'!R11,'Project Tracking'!$F$8:$F$200)","v":{"v":0,"d":"0.00"}},"  "]
[{"$nulls":16},{"$f":"SUMIF('Project Tracking'!$A$8:$A$208,'Participant  Information'!R12,'Project Tracking'!$F$8:$F$200)","v":{"v":0,"d":"0.00"}},"  "]
[{"$nulls":16},{"$f":"SUMIF('Project Tracking'!$A$8:$A$208,'Participant  Information'!R13,'Project Tracking'!$F$8:$F$200)","v":{"v":0,"d":"0.00"}},"  "]
[{"$nulls":16},{"$f":"SUMIF('Project Tracking'!$A$8:$A$208,'Participant  Information'!R14,'Project Tracking'!$F$8:$F$200)","v":{"v":0,"d":"0.00"}},"  "]
[{"$nulls":16},{"$f":"SUMIF('Project Tracking'!$A$8:$A$208,'Participant  Information'!R15,'Project Tracking'!$F$8:$F$200)","v":{"v":0,"d":"0.00"}},"  "]
[{"$nulls":16},{"$f":"SUMIF('Project Tracking'!$A$8:$A$208,'Participant  Information'!R16,'Project Tracking'!$F$8:$F$200)","v":{"v":0,"d":"0.00"}},"  "]
[{"$nulls":16},{"$f":"SUMIF('Project Tracking'!$A$8:$A$208,'Participant  Information'!R17,'Project Tracking'!$F$8:$F$200)","v":{"v":0,"d":"0.00"}},"  "]
[{"$nulls":16},{"$f":"SUMIF('Project Tracking'!$A$8:$A$208,'Participant  Information'!R18,'Project Tracking'!$F$8:$F$200)","v":{"v":0,"d":"0.00"}},"  "]
[{"$nulls":16},{"$f":"SUMIF('Project Tracking'!$A$8:$A$208,'Participant  Information'!R19,'Project Tracking'!$F$8:$F$200)","v":{"v":0,"d":"0.00"}},"  "]
[{"$nulls":16},{"$f":"SUMIF('Project Tracking'!$A$8:$A$208,'Participant  Information'!R20,'Project Tracking'!$F$8:$F$200)","v":{"v":0,"d":"0.00"}},"  "]
[{"$nulls":16},{"$f":"SUMIF('Project Tracking'!$A$8:$A$208,'Participant  Information'!R21,'Project Tracking'!$F$8:$F$200)","v":{"v":0,"d":"0.00"}},"  "]
[{"$nulls":16},{"$f":"SUMIF('Project Tracking'!$A$8:$A$208,'Participant  Information'!R22,'Project Tracking'!$F$8:$F$200)","v":{"v":0,"d":"0.00"}},"  "]
[{"$nulls":16},{"$f":"SUMIF('Project Tracking'!$A$8:$A$208,'Participant  Information'!R23,'Project Tracking'!$F$8:$F$200)","v":{"v":0,"d":"0.00"}},"  "]
[{"$nulls":16},{"$f":"SUMIF('Project Tracking'!$A$8:$A$208,'Participant  Information'!R24,'Project Tracking'!$F$8:$F$200)","v":{"v":0,"d":"0.00"}},"  "]
[{"$nulls":16},{"$f":"SUMIF('Project Tracking'!$A$8:$A$208,'Participant  Information'!R25,'Project Tracking'!$F$8:$F$200)","v":{"v":0,"d":"0.00"}},"  "]
[{"$nulls":16},{"$f":"SUMIF('Project Tracking'!$A$8:$A$208,'Participant  Information'!R26,'Project Tracking'!$F$8:$F$200)","v":{"v":0,"d":"0.00"}},"  "]
[{"$nulls":16},{"$f":"SUMIF('Project Tracking'!$A$8:$A$208,'Participant  Information'!R27,'Project Tracking'!$F$8:$F$200)","v":{"v":0,"d":"0.00"}},"  "]
[{"$nulls":16},{"$f":"SUMIF('Project Tracking'!$A$8:$A$208,'Participant  Information'!R28,'Project Tracking'!$F$8:$F$200)","v":{"v":0,"d":"0.00"}},"  "]
[{"$nulls":16},{"$f":"SUMIF('Project Tracking'!$A$8:$A$208,'Participant  Information'!R29,'Project Tracking'!$F$8:$F$200)","v":{"v":0,"d":"0.00"}},"  "]
[{"$nulls":16},{"$f":"SUMIF('Project Tracking'!$A$8:$A$208,'Participant  Information'!R30,'Project Tracking'!$F$8:$F$200)","v":{"v":0,"d":"0.00"}},"  "]
[{"$nulls":16},{"$f":"SUMIF('Project Tracking'!$A$8:$A$208,'Participant  Information'!R31,'Project Tracking'!$F$8:$F$200)","v":{"v":0,"d":"0.00"}},"  "]
[{"$nulls":16},{"$f":"SUMIF('Project Tracking'!$A$8:$A$208,'Participant  Information'!R32,'Project Tracking'!$F$8:$F$200)","v":{"v":0,"d":"0.00"}},"  "]
[{"$nulls":16},{"$f":"SUMIF('Project Tracking'!$A$8:$A$208,'Participant  Information'!R33,'Project Tracking'!$F$8:$F$200)","v":{"v":0,"d":"0.00"}},"  "]
[{"$nulls":16},{"$f":"SUMIF('Project Tracking'!$A$8:$A$208,'Participant  Information'!R34,'Project Tracking'!$F$8:$F$200)","v":{"v":0,"d":"0.00"}},"  "]
[{"$nulls":16},{"$f":"SUMIF('Project Tracking'!$A$8:$A$208,'Participant  Information'!R35,'Project Tracking'!$F$8:$F$200)","v":{"v":0,"d":"0.00"}},"  "]
[{"$nulls":16},{"$f":"SUMIF('Project Tracking'!$A$8:$A$208,'Participant  Information'!R36,'Project Tracking'!$F$8:$F$200)","v":{"v":0,"d":"0.00"}},"  "]
[{"$nulls":16},{"$f":"SUMIF('Project Tracking'!$A$8:$A$208,'Participant  Information'!R37,'Project Tracking'!$F$8:$F$200)","v":{"v":0,"d":"0.00"}},"  "]
[{"$nulls":16},{"$f":"SUMIF('Project Tracking'!$A$8:$A$208,'Participant  Information'!R38,'Project Tracking'!$F$8:$F$200)","v":{"v":0,"d":"0.00"}},"  "]
[{"$nulls":16},{"$f":"SUMIF('Project Tracking'!$A$8:$A$208,'Participant  Information'!R39,'Project Tracking'!$F$8:$F$200)","v":{"v":0,"d":"0.00"}},"  "]
[{"$nulls":16},{"$f":"SUMIF('Project Tracking'!$A$8:$A$208,'Participant  Information'!R40,'Project Tracking'!$F$8:$F$200)","v":{"v":0,"d":"0.00"}},"  "]
[{"$nulls":16},{"$f":"SUMIF('Project Tracking'!$A$8:$A$208,'Participant  Information'!R41,'Project Tracking'!$F$8:$F$200)","v":{"v":0,"d":"0.00"}},"  "]
[{"$nulls":16},{"$f":"SUMIF('Project Tracking'!$A$8:$A$208,'Participant  Information'!R42,'Project Tracking'!$F$8:$F$200)","v":{"v":0,"d":"0.00"}},"  "]
[{"$nulls":16},{"$f":"SUMIF('Project Tracking'!$A$8:$A$208,'Participant  Information'!R43,'Project Tracking'!$F$8:$F$200)","v":{"v":0,"d":"0.00"}},"  "]
[{"$nulls":16},{"$f":"SUMIF('Project Tracking'!$A$8:$A$208,'Participant  Information'!R44,'Project Tracking'!$F$8:$F$200)","v":{"v":0,"d":"0.00"}},"  "]
[{"$nulls":16},{"$f":"SUMIF('Project Tracking'!$A$8:$A$208,'Participant  Information'!R45,'Project Tracking'!$F$8:$F$200)","v":{"v":0,"d":"0.00"}},"  "]
[{"$nulls":16},{"$f":"SUMIF('Project Tracking'!$A$8:$A$208,'Participant  Information'!R46,'Project Tracking'!$F$8:$F$200)","v":{"v":0,"d":"0.00"}},"  "]
[{"$nulls":16},{"$f":"SUMIF('Project Tracking'!$A$8:$A$208,'Participant  Information'!R47,'Project Tracking'!$F$8:$F$200)","v":{"v":0,"d":"0.00"}},"  "]
[{"$nulls":16},{"$f":"SUMIF('Project Tracking'!$A$8:$A$208,'Participant  Information'!R48,'Project Tracking'!$F$8:$F$200)","v":{"v":0,"d":"0.00"}},"  "]
[{"$nulls":16},{"$f":"SUMIF('Project Tracking'!$A$8:$A$208,'Participant  Information'!R49,'Project Tracking'!$F$8:$F$200)","v":{"v":0,"d":"0.00"}},"  "]
[{"$nulls":16},{"$f":"SUMIF('Project Tracking'!$A$8:$A$208,'Participant  Information'!R50,'Project Tracking'!$F$8:$F$200)","v":{"v":0,"d":"0.00"}},"  "]
[{"$nulls":16},{"$f":"SUMIF('Project Tracking'!$A$8:$A$208,'Participant  Information'!R51,'Project Tracking'!$F$8:$F$200)","v":{"v":0,"d":"0.00"}},"  "]
[{"$nulls":16},{"$f":"SUMIF('Project Tracking'!$A$8:$A$208,'Participant  Information'!R52,'Project Tracking'!$F$8:$F$200)","v":{"v":0,"d":"0.00"}},"  "]
[{"$nulls":16},{"$f":"SUMIF('Project Tracking'!$A$8:$A$208,'Participant  Information'!R53,'Project Tracking'!$F$8:$F$200)","v":{"v":0,"d":"0.00"}},"  "]
[{"$nulls":16},{"$f":"SUMIF('Project Tracking'!$A$8:$A$208,'Participant  Information'!R54,'Project Tracking'!$F$8:$F$200)","v":{"v":0,"d":"0.00"}},"  "]
[{"$nulls":16},{"$f":"SUMIF('Project Tracking'!$A$8:$A$208,'Participant  Information'!R55,'Project Tracking'!$F$8:$F$200)","v":{"v":0,"d":"0.00"}},"  "]
[{"$nulls":16},{"$f":"SUMIF('Project Tracking'!$A$8:$A$208,'Participant  Information'!R56,'Project Tracking'!$F$8:$F$200)","v":{"v":0,"d":"0.00"}},"  "]
[{"$nulls":16},{"$f":"SUMIF('Project Tracking'!$A$8:$A$208,'Participant  Information'!R57,'Project Tracking'!$F$8:$F$200)","v":{"v":0,"d":"0.00"}},"  "]
[{"$nulls":16},{"$f":"SUMIF('Project Tracking'!$A$8:$A$208,'Participant  Information'!R58,'Project Tracking'!$F$8:$F$200)","v":{"v":0,"d":"0.00"}},"  "]
[{"$nulls":16},{"$f":"SUMIF('Project Tracking'!$A$8:$A$208,'Participant  Information'!R59,'Project Tracking'!$F$8:$F$200)","v":{"v":0,"d":"0.00"}},"  "]
[{"$nulls":16},{"$f":"SUMIF('Project Tracking'!$A$8:$A$208,'Participant  Information'!R60,'Project Tracking'!$F$8:$F$200)","v":{"v":0,"d":"0.00"}},"  "]
[{"$nulls":16},{"$f":"SUMIF('Project Tracking'!$A$8:$A$208,'Participant  Information'!R61,'Project Tracking'!$F$8:$F$200)","v":{"v":0,"d":"0.00"}},"  "]
[{"$nulls":16},{"$f":"SUMIF('Project Tracking'!$A$8:$A$208,'Participant  Information'!R62,'Project Tracking'!$F$8:$F$200)","v":{"v":0,"d":"0.00"}},"  "]
[{"$nulls":16},{"$f":"SUMIF('Project Tracking'!$A$8:$A$208,'Participant  Information'!R63,'Project Tracking'!$F$8:$F$200)","v":{"v":0,"d":"0.00"}},"  "]
[{"$nulls":16},{"$f":"SUMIF('Project Tracking'!$A$8:$A$208,'Participant  Information'!R64,'Project Tracking'!$F$8:$F$200)","v":{"v":0,"d":"0.00"}},"  "]
[{"$nulls":16},{"$f":"SUMIF('Project Tracking'!$A$8:$A$208,'Participant  Information'!R65,'Project Tracking'!$F$8:$F$200)","v":{"v":0,"d":"0.00"}},"  "]
[{"$nulls":16},{"$f":"SUMIF('Project Tracking'!$A$8:$A$208,'Participant  Information'!R66,'Project Tracking'!$F$8:$F$200)","v":{"v":0,"d":"0.00"}},"  "]
[{"$nulls":16},{"$f":"SUMIF('Project Tracking'!$A$8:$A$208,'Participant  Information'!R67,'Project Tracking'!$F$8:$F$200)","v":{"v":0,"d":"0.00"}},"  "]
[{"$nulls":16},{"$f":"SUMIF('Project Tracking'!$A$8:$A$208,'Participant  Information'!R68,'Project Tracking'!$F$8:$F$200)","v":{"v":0,"d":"0.00"}},"  "]
[{"$nulls":16},{"$f":"SUMIF('Project Tracking'!$A$8:$A$208,'Participant  Information'!R69,'Project Tracking'!$F$8:$F$200)","v":{"v":0,"d":"0.00"}},"  "]
[{"$nulls":16},{"$f":"SUMIF('Project Tracking'!$A$8:$A$208,'Participant  Information'!R70,'Project Tracking'!$F$8:$F$200)","v":{"v":0,"d":"0.00"}},"  "]
[{"$nulls":16},{"$f":"SUMIF('Project Tracking'!$A$8:$A$208,'Participant  Information'!R71,'Project Tracking'!$F$8:$F$200)","v":{"v":0,"d":"0.00"}},"  "]
[{"$nulls":16},{"$f":"SUMIF('Project Tracking'!$A$8:$A$208,'Participant  Information'!R72,'Project Tracking'!$F$8:$F$200)","v":{"v":0,"d":"0.00"}},{"$f":"CONCATENATE(B72,\" \",C72,\" \",A72)","v":"  "}]
[{"$nulls":16},{"$f":"SUMIF('Project Tracking'!$A$8:$A$208,'Participant  Information'!R73,'Project Tracking'!$F$8:$F$200)","v":{"v":0,"d":"0.00"}},"  "]
[{"$nulls":16},{"$f":"SUMIF('Project Tracking'!$A$8:$A$208,'Participant  Information'!R74,'Project Tracking'!$F$8:$F$200)","v":{"v":0,"d":"0.00"}},"  "]
[{"$nulls":16},{"$f":"SUMIF('Project Tracking'!$A$8:$A$208,'Participant  Information'!R75,'Project Tracking'!$F$8:$F$200)","v":{"v":0,"d":"0.00"}},"  "]
[{"$nulls":16},{"$f":"SUMIF('Project Tracking'!$A$8:$A$208,'Participant  Information'!R76,'Project Tracking'!$F$8:$F$200)","v":{"v":0,"d":"0.00"}},"  "]
[{"$nulls":16},{"$f":"SUMIF('Project Tracking'!$A$8:$A$208,'Participant  Information'!R77,'Project Tracking'!$F$8:$F$200)","v":{"v":0,"d":"0.00"}},"  "]
[{"$nulls":16},{"$f":"SUMIF('Project Tracking'!$A$8:$A$208,'Participant  Information'!R78,'Project Tracking'!$F$8:$F$200)","v":{"v":0,"d":"0.00"}},"  "]
[{"$nulls":16},{"$f":"SUMIF('Project Tracking'!$A$8:$A$208,'Participant  Information'!R79,'Project Tracking'!$F$8:$F$200)","v":{"v":0,"d":"0.00"}},"  "]
[{"$nulls":16},{"$f":"SUMIF('Project Tracking'!$A$8:$A$208,'Participant  Information'!R80,'Project Tracking'!$F$8:$F$200)","v":{"v":0,"d":"0.00"}},"  "]
[{"$nulls":16},{"$f":"SUMIF('Project Tracking'!$A$8:$A$208,'Participant  Information'!R81,'Project Tracking'!$F$8:$F$200)","v":{"v":0,"d":"0.00"}},"  "]
[{"$nulls":16},{"$f":"SUMIF('Project Tracking'!$A$8:$A$208,'Participant  Information'!R82,'Project Tracking'!$F$8:$F$200)","v":{"v":0,"d":"0.00"}},"  "]
[{"$nulls":16},{"$f":"SUMIF('Project Tracking'!$A$8:$A$208,'Participant  Information'!R83,'Project Tracking'!$F$8:$F$200)","v":{"v":0,"d":"0.00"}},"  "]
[{"$nulls":16},{"$f":"SUMIF('Project Tracking'!$A$8:$A$208,'Participant  Information'!R84,'Project Tracking'!$F$8:$F$200)","v":{"v":0,"d":"0.00"}},"  "]
[{"$nulls":16},{"$f":"SUMIF('Project Tracking'!$A$8:$A$208,'Participant  Information'!R85,'Project Tracking'!$F$8:$F$200)","v":{"v":0,"d":"0.00"}},"  "]
[{"$nulls":16},{"$f":"SUMIF('Project Tracking'!$A$8:$A$208,'Participant  Information'!R86,'Project Tracking'!$F$8:$F$200)","v":{"v":0,"d":"0.00"}},"  "]
[{"$nulls":16},{"$f":"SUMIF('Project Tracking'!$A$8:$A$208,'Participant  Information'!R87,'Project Tracking'!$F$8:$F$200)","v":{"v":0,"d":"0.00"}},"  "]
[{"$nulls":16},{"$f":"SUMIF('Project Tracking'!$A$8:$A$208,'Participant  Information'!R88,'Project Tracking'!$F$8:$F$200)","v":{"v":0,"d":"0.00"}},"  "]
[{"$nulls":16},{"$f":"SUMIF('Project Tracking'!$A$8:$A$208,'Participant  Information'!R89,'Project Tracking'!$F$8:$F$200)","v":{"v":0,"d":"0.00"}},"  "]
[{"$nulls":16},{"$f":"SUMIF('Project Tracking'!$A$8:$A$208,'Participant  Information'!R90,'Project Tracking'!$F$8:$F$200)","v":{"v":0,"d":"0.00"}},"  "]
[{"$nulls":16},{"$f":"SUMIF('Project Tracking'!$A$8:$A$208,'Participant  Information'!R91,'Project Tracking'!$F$8:$F$200)","v":{"v":0,"d":"0.00"}},"  "]
[{"$nulls":16},{"$f":"SUMIF('Project Tracking'!$A$8:$A$208,'Participant  Information'!R92,'Project Tracking'!$F$8:$F$200)","v":{"v":0,"d":"0.00"}},"  "]
[{"$nulls":16},{"$f":"SUMIF('Project Tracking'!$A$8:$A$208,'Participant  Information'!R93,'Project Tracking'!$F$8:$F$200)","v":{"v":0,"d":"0.00"}},"  "]
[{"$nulls":16},{"$f":"SUMIF('Project Tracking'!$A$8:$A$208,'Participant  Information'!R94,'Project Tracking'!$F$8:$F$200)","v":{"v":0,"d":"0.00"}},"  "]
[{"$nulls":16},{"$f":"SUMIF('Project Tracking'!$A$8:$A$208,'Participant  Information'!R95,'Project Tracking'!$F$8:$F$200)","v":{"v":0,"d":"0.00"}},"  "]
[{"$nulls":16},{"$f":"SUMIF('Project Tracking'!$A$8:$A$208,'Participant  Information'!R96,'Project Tracking'!$F$8:$F$200)","v":{"v":0,"d":"0.00"}},"  "]
[{"$nulls":16},{"$f":"SUMIF('Project Tracking'!$A$8:$A$208,'Participant  Information'!R97,'Project Tracking'!$F$8:$F$200)","v":{"v":0,"d":"0.00"}},"  "]
[{"$nulls":16},{"$f":"SUMIF('Project Tracking'!$A$8:$A$208,'Participant  Information'!R98,'Project Tracking'!$F$8:$F$200)","v":{"v":0,"d":"0.00"}},"  "]
[{"$nulls":16},{"$f":"SUMIF('Project Tracking'!$A$8:$A$208,'Participant  Information'!R99,'Project Tracking'!$F$8:$F$200)","v":{"v":0,"d":"0.00"}},"  "]
[{"$nulls":16},{"$f":"SUMIF('Project Tracking'!$A$8:$A$208,'Participant  Information'!R100,'Project Tracking'!$F$8:$F$200)","v":{"v":0,"d":"0.00"}},"  "]
[{"$nulls":16},{"$f":"SUMIF('Project Tracking'!$A$8:$A$208,'Participant  Information'!R101,'Project Tracking'!$F$8:$F$200)","v":{"v":0,"d":"0.00"}},"  "]
[{"$nulls":16},{"$f":"SUMIF('Project Tracking'!$A$8:$A$208,'Participant  Information'!R102,'Project Tracking'!$F$8:$F$200)","v":{"v":0,"d":"0.00"}},"  "]
[{"$nulls":16},{"$f":"SUMIF('Project Tracking'!$A$8:$A$208,'Participant  Information'!R103,'Project Tracking'!$F$8:$F$200)","v":{"v":0,"d":"0.00"}},"  "]
[{"$nulls":16},{"$f":"SUMIF('Project Tracking'!$A$8:$A$208,'Participant  Information'!R104,'Project Tracking'!$F$8:$F$200)","v":{"v":0,"d":"0.00"}},"  "]
[{"$nulls":16},{"$f":"SUMIF('Project Tracking'!$A$8:$A$208,'Participant  Information'!R105,'Project Tracking'!$F$8:$F$200)","v":{"v":0,"d":"0.00"}},"  "]
[{"$nulls":16},{"$f":"SUMIF('Project Tracking'!$A$8:$A$208,'Participant  Information'!R106,'Project Tracking'!$F$8:$F$200)","v":{"v":0,"d":"0.00"}},"  "]
[{"$nulls":16},{"$f":"SUMIF('Project Tracking'!$A$8:$A$208,'Participant  Information'!R107,'Project Tracking'!$F$8:$F$200)","v":{"v":0,"d":"0.00"}},"  "]
[{"$nulls":16},{"$f":"SUMIF('Project Tracking'!$A$8:$A$208,'Participant  Information'!R108,'Project Tracking'!$F$8:$F$200)","v":{"v":0,"d":"0.00"}},"  "]
[{"$nulls":16},{"$f":"SUMIF('Project Tracking'!$A$8:$A$208,'Participant  Information'!R109,'Project Tracking'!$F$8:$F$200)","v":{"v":0,"d":"0.00"}},"  "]
[{"$nulls":16},{"$f":"SUMIF('Project Tracking'!$A$8:$A$208,'Participant  Information'!R110,'Project Tracking'!$F$8:$F$200)","v":{"v":0,"d":"0.00"}},"  "]
[{"$nulls":16},{"$f":"SUMIF('Project Tracking'!$A$8:$A$208,'Participant  Information'!R111,'Project Tracking'!$F$8:$F$200)","v":{"v":0,"d":"0.00"}},"  "]
[{"$nulls":16},{"$f":"SUMIF('Project Tracking'!$A$8:$A$208,'Participant  Information'!R112,'Project Tracking'!$F$8:$F$200)","v":{"v":0,"d":"0.00"}},"  "]
[{"$nulls":16},{"$f":"SUMIF('Project Tracking'!$A$8:$A$208,'Participant  Information'!R113,'Project Tracking'!$F$8:$F$200)","v":{"v":0,"d":"0.00"}},"  "]
[{"$nulls":16},{"$f":"SUMIF('Project Tracking'!$A$8:$A$208,'Participant  Information'!R114,'Project Tracking'!$F$8:$F$200)","v":{"v":0,"d":"0.00"}},"  "]
[{"$nulls":16},{"$f":"SUMIF('Project Tracking'!$A$8:$A$208,'Participant  Information'!R115,'Project Tracking'!$F$8:$F$200)","v":{"v":0,"d":"0.00"}},"  "]
[{"$nulls":16},{"$f":"SUMIF('Project Tracking'!$A$8:$A$208,'Participant  Information'!R116,'Project Tracking'!$F$8:$F$200)","v":{"v":0,"d":"0.00"}},"  "]
[{"$nulls":16},{"$f":"SUMIF('Project Tracking'!$A$8:$A$208,'Participant  Information'!R117,'Project Tracking'!$F$8:$F$200)","v":{"v":0,"d":"0.00"}},"  "]
[{"$nulls":16},{"$f":"SUMIF('Project Tracking'!$A$8:$A$208,'Participant  Information'!R118,'Project Tracking'!$F$8:$F$200)","v":{"v":0,"d":"0.00"}},"  "]
[{"$nulls":16},{"$f":"SUMIF('Project Tracking'!$A$8:$A$208,'Participant  Information'!R119,'Project Tracking'!$F$8:$F$200)","v":{"v":0,"d":"0.00"}},"  "]
[{"$nulls":16},{"$f":"SUMIF('Project Tracking'!$A$8:$A$208,'Participant  Information'!R120,'Project Tracking'!$F$8:$F$200)","v":{"v":0,"d":"0.00"}},"  "]
[{"$nulls":16},{"$f":"SUMIF('Project Tracking'!$A$8:$A$208,'Participant  Information'!R121,'Project Tracking'!$F$8:$F$200)","v":{"v":0,"d":"0.00"}},"  "]
[{"$nulls":16},{"$f":"SUMIF('Project Tracking'!$A$8:$A$208,'Participant  Information'!R122,'Project Tracking'!$F$8:$F$200)","v":{"v":0,"d":"0.00"}},"  "]
[{"$nulls":16},{"$f":"SUMIF('Project Tracking'!$A$8:$A$208,'Participant  Information'!R123,'Project Tracking'!$F$8:$F$200)","v":{"v":0,"d":"0.00"}},"  "]
[{"$nulls":16},{"$f":"SUMIF('Project Tracking'!$A$8:$A$208,'Participant  Information'!R124,'Project Tracking'!$F$8:$F$200)","v":{"v":0,"d":"0.00"}},"  "]
[{"$nulls":16},{"$f":"SUMIF('Project Tracking'!$A$8:$A$208,'Participant  Information'!R125,'Project Tracking'!$F$8:$F$200)","v":{"v":0,"d":"0.00"}},"  "]
[{"$nulls":16},{"$f":"SUMIF('Project Tracking'!$A$8:$A$208,'Participant  Information'!R126,'Project Tracking'!$F$8:$F$200)","v":{"v":0,"d":"0.00"}},"  "]
[{"$nulls":16},{"$f":"SUMIF('Project Tracking'!$A$8:$A$208,'Participant  Information'!R127,'Project Tracking'!$F$8:$F$200)","v":{"v":0,"d":"0.00"}},"  "]
[{"$nulls":16},{"$f":"SUMIF('Project Tracking'!$A$8:$A$208,'Participant  Information'!R128,'Project Tracking'!$F$8:$F$200)","v":{"v":0,"d":"0.00"}},"  "]
[{"$nulls":16},{"$f":"SUMIF('Project Tracking'!$A$8:$A$208,'Participant  Information'!R129,'Project Tracking'!$F$8:$F$200)","v":{"v":0,"d":"0.00"}},"  "]
[{"$nulls":16},{"$f":"SUMIF('Project Tracking'!$A$8:$A$208,'Participant  Information'!R130,'Project Tracking'!$F$8:$F$200)","v":{"v":0,"d":"0.00"}},"  "]
[{"$nulls":16},{"$f":"SUMIF('Project Tracking'!$A$8:$A$208,'Participant  Information'!R131,'Project Tracking'!$F$8:$F$200)","v":{"v":0,"d":"0.00"}},"  "]
[{"$nulls":16},{"$f":"SUMIF('Project Tracking'!$A$8:$A$208,'Participant  Information'!R132,'Project Tracking'!$F$8:$F$200)","v":{"v":0,"d":"0.00"}},"  "]
[{"$nulls":16},{"$f":"SUMIF('Project Tracking'!$A$8:$A$208,'Participant  Information'!R133,'Project Tracking'!$F$8:$F$200)","v":{"v":0,"d":"0.00"}},"  "]
[{"$nulls":16},{"$f":"SUMIF('Project Tracking'!$A$8:$A$208,'Participant  Information'!R134,'Project Tracking'!$F$8:$F$200)","v":{"v":0,"d":"0.00"}},"  "]
[{"$nulls":16},{"$f":"SUMIF('Project Tracking'!$A$8:$A$208,'Participant  Information'!R135,'Project Tracking'!$F$8:$F$200)","v":{"v":0,"d":"0.00"}},"  "]
[{"$nulls":16},{"$f":"SUMIF('Project Tracking'!$A$8:$A$208,'Participant  Information'!R136,'Project Tracking'!$F$8:$F$200)","v":{"v":0,"d":"0.00"}},{"$f":"CONCATENATE(B136,\" \",C136,\" \",A136)","v":"  "}]
[{"$nulls":16},{"$f":"SUMIF('Project Tracking'!$A$8:$A$208,'Participant  Information'!R137,'Project Tracking'!$F$8:$F$200)","v":{"v":0,"d":"0.00"}},"  "]
[{"$nulls":16},{"$f":"SUMIF('Project Tracking'!$A$8:$A$208,'Participant  Information'!R138,'Project Tracking'!$F$8:$F$200)","v":{"v":0,"d":"0.00"}},"  "]
[{"$nulls":16},{"$f":"SUMIF('Project Tracking'!$A$8:$A$208,'Participant  Information'!R139,'Project Tracking'!$F$8:$F$200)","v":{"v":0,"d":"0.00"}},"  "]
[{"$nulls":16},{"$f":"SUMIF('Project Tracking'!$A$8:$A$208,'Participant  Information'!R140,'Project Tracking'!$F$8:$F$200)","v":{"v":0,"d":"0.00"}},"  "]
[{"$nulls":16},{"$f":"SUMIF('Project Tracking'!$A$8:$A$208,'Participant  Information'!R141,'Project Tracking'!$F$8:$F$200)","v":{"v":0,"d":"0.00"}},"  "]
[{"$nulls":16},{"$f":"SUMIF('Project Tracking'!$A$8:$A$208,'Participant  Information'!R142,'Project Tracking'!$F$8:$F$200)","v":{"v":0,"d":"0.00"}},"  "]
[{"$nulls":16},{"$f":"SUMIF('Project Tracking'!$A$8:$A$208,'Participant  Information'!R143,'Project Tracking'!$F$8:$F$200)","v":{"v":0,"d":"0.00"}},"  "]
[{"$nulls":16},{"$f":"SUMIF('Project Tracking'!$A$8:$A$208,'Participant  Information'!R144,'Project Tracking'!$F$8:$F$200)","v":{"v":0,"d":"0.00"}},"  "]
[{"$nulls":16},{"$f":"SUMIF('Project Tracking'!$A$8:$A$208,'Participant  Information'!R145,'Project Tracking'!$F$8:$F$200)","v":{"v":0,"d":"0.00"}},"  "]
[{"$nulls":16},{"$f":"SUMIF('Project Tracking'!$A$8:$A$208,'Participant  Information'!R146,'Project Tracking'!$F$8:$F$200)","v":{"v":0,"d":"0.00"}},"  "]
[{"$nulls":16},{"$f":"SUMIF('Project Tracking'!$A$8:$A$208,'Participant  Information'!R147,'Project Tracking'!$F$8:$F$200)","v":{"v":0,"d":"0.00"}},"  "]
[{"$nulls":16},{"$f":"SUMIF('Project Tracking'!$A$8:$A$208,'Participant  Information'!R148,'Project Tracking'!$F$8:$F$200)","v":{"v":0,"d":"0.00"}},"  "]
[{"$nulls":16},{"$f":"SUMIF('Project Tracking'!$A$8:$A$208,'Participant  Information'!R149,'Project Tracking'!$F$8:$F$200)","v":{"v":0,"d":"0.00"}},"  "]
[{"$nulls":16},{"$f":"SUMIF('Project Tracking'!$A$8:$A$208,'Participant  Information'!R150,'Project Tracking'!$F$8:$F$200)","v":{"v":0,"d":"0.00"}},"  "]
[{"$nulls":16},{"$f":"SUMIF('Project Tracking'!$A$8:$A$208,'Participant  Information'!R151,'Project Tracking'!$F$8:$F$200)","v":{"v":0,"d":"0.00"}},"  "]
[{"$nulls":16},{"$f":"SUMIF('Project Tracking'!$A$8:$A$208,'Participant  Information'!R152,'Project Tracking'!$F$8:$F$200)","v":{"v":0,"d":"0.00"}},"  "]
[{"$nulls":16},{"$f":"SUMIF('Project Tracking'!$A$8:$A$208,'Participant  Information'!R153,'Project Tracking'!$F$8:$F$200)","v":{"v":0,"d":"0.00"}},"  "]
[{"$nulls":16},{"$f":"SUMIF('Project Tracking'!$A$8:$A$208,'Participant  Information'!R154,'Project Tracking'!$F$8:$F$200)","v":{"v":0,"d":"0.00"}},"  "]
[{"$nulls":16},{"$f":"SUMIF('Project Tracking'!$A$8:$A$208,'Participant  Information'!R155,'Project Tracking'!$F$8:$F$200)","v":{"v":0,"d":"0.00"}},"  "]
[{"$nulls":16},{"$f":"SUMIF('Project Tracking'!$A$8:$A$208,'Participant  Information'!R156,'Project Tracking'!$F$8:$F$200)","v":{"v":0,"d":"0.00"}},"  "]
[{"$nulls":16},{"$f":"SUMIF('Project Tracking'!$A$8:$A$208,'Participant  Information'!R157,'Project Tracking'!$F$8:$F$200)","v":{"v":0,"d":"0.00"}},"  "]
[{"$nulls":16},{"$f":"SUMIF('Project Tracking'!$A$8:$A$208,'Participant  Information'!R158,'Project Tracking'!$F$8:$F$200)","v":{"v":0,"d":"0.00"}},"  "]
[{"$nulls":16},{"$f":"SUMIF('Project Tracking'!$A$8:$A$208,'Participant  Information'!R159,'Project Tracking'!$F$8:$F$200)","v":{"v":0,"d":"0.00"}},"  "]
[{"$nulls":16},{"$f":"SUMIF('Project Tracking'!$A$8:$A$208,'Participant  Information'!R160,'Project Tracking'!$F$8:$F$200)","v":{"v":0,"d":"0.00"}},"  "]
[{"$nulls":16},{"$f":"SUMIF('Project Tracking'!$A$8:$A$208,'Participant  Information'!R161,'Project Tracking'!$F$8:$F$200)","v":{"v":0,"d":"0.00"}},"  "]
[{"$nulls":16},{"$f":"SUMIF('Project Tracking'!$A$8:$A$208,'Participant  Information'!R162,'Project Tracking'!$F$8:$F$200)","v":{"v":0,"d":"0.00"}},"  "]
[{"$nulls":16},{"$f":"SUMIF('Project Tracking'!$A$8:$A$208,'Participant  Information'!R163,'Project Tracking'!$F$8:$F$200)","v":{"v":0,"d":"0.00"}},"  "]
[{"$nulls":16},{"$f":"SUMIF('Project Tracking'!$A$8:$A$208,'Participant  Information'!R164,'Project Tracking'!$F$8:$F$200)","v":{"v":0,"d":"0.00"}},"  "]
[{"$nulls":16},{"$f":"SUMIF('Project Tracking'!$A$8:$A$208,'Participant  Information'!R165,'Project Tracking'!$F$8:$F$200)","v":{"v":0,"d":"0.00"}},"  "]
[{"$nulls":16},{"$f":"SUMIF('Project Tracking'!$A$8:$A$208,'Participant  Information'!R166,'Project Tracking'!$F$8:$F$200)","v":{"v":0,"d":"0.00"}},"  "]
[{"$nulls":16},{"$f":"SUMIF('Project Tracking'!$A$8:$A$208,'Participant  Information'!R167,'Project Tracking'!$F$8:$F$200)","v":{"v":0,"d":"0.00"}},"  "]
[{"$nulls":16},{"$f":"SUMIF('Project Tracking'!$A$8:$A$208,'Participant  Information'!R168,'Project Tracking'!$F$8:$F$200)","v":{"v":0,"d":"0.00"}},"  "]
[{"$nulls":16},{"$f":"SUMIF('Project Tracking'!$A$8:$A$208,'Participant  Information'!R169,'Project Tracking'!$F$8:$F$200)","v":{"v":0,"d":"0.00"}},"  "]
[{"$nulls":16},{"$f":"SUMIF('Project Tracking'!$A$8:$A$208,'Participant  Information'!R170,'Project Tracking'!$F$8:$F$200)","v":{"v":0,"d":"0.00"}},"  "]
[{"$nulls":16},{"$f":"SUMIF('Project Tracking'!$A$8:$A$208,'Participant  Information'!R171,'Project Tracking'!$F$8:$F$200)","v":{"v":0,"d":"0.00"}},"  "]
[{"$nulls":16},{"$f":"SUMIF('Project Tracking'!$A$8:$A$208,'Participant  Information'!R172,'Project Tracking'!$F$8:$F$200)","v":{"v":0,"d":"0.00"}},"  "]
[{"$nulls":16},{"$f":"SUMIF('Project Tracking'!$A$8:$A$208,'Participant  Information'!R173,'Project Tracking'!$F$8:$F$200)","v":{"v":0,"d":"0.00"}},"  "]
[{"$nulls":16},{"$f":"SUMIF('Project Tracking'!$A$8:$A$208,'Participant  Information'!R174,'Project Tracking'!$F$8:$F$200)","v":{"v":0,"d":"0.00"}},"  "]
[{"$nulls":16},{"$f":"SUMIF('Project Tracking'!$A$8:$A$208,'Participant  Information'!R175,'Project Tracking'!$F$8:$F$200)","v":{"v":0,"d":"0.00"}},"  "]
[{"$nulls":16},{"$f":"SUMIF('Project Tracking'!$A$8:$A$208,'Participant  Information'!R176,'Project Tracking'!$F$8:$F$200)","v":{"v":0,"d":"0.00"}},"  "]
[{"$nulls":16},{"$f":"SUMIF('Project Tracking'!$A$8:$A$208,'Participant  Information'!R177,'Project Tracking'!$F$8:$F$200)","v":{"v":0,"d":"0.00"}},"  "]
[{"$nulls":16},{"$f":"SUMIF('Project Tracking'!$A$8:$A$208,'Participant  Information'!R178,'Project Tracking'!$F$8:$F$200)","v":{"v":0,"d":"0.00"}},"  "]
[{"$nulls":16},{"$f":"SUMIF('Project Tracking'!$A$8:$A$208,'Participant  Information'!R179,'Project Tracking'!$F$8:$F$200)","v":{"v":0,"d":"0.00"}},"  "]
[{"$nulls":16},{"$f":"SUMIF('Project Tracking'!$A$8:$A$208,'Participant  Information'!R180,'Project Tracking'!$F$8:$F$200)","v":{"v":0,"d":"0.00"}},"  "]
[{"$nulls":16},{"$f":"SUMIF('Project Tracking'!$A$8:$A$208,'Participant  Information'!R181,'Project Tracking'!$F$8:$F$200)","v":{"v":0,"d":"0.00"}},"  "]
[{"$nulls":16},{"$f":"SUMIF('Project Tracking'!$A$8:$A$208,'Participant  Information'!R182,'Project Tracking'!$F$8:$F$200)","v":{"v":0,"d":"0.00"}},"  "]
[{"$nulls":16},{"$f":"SUMIF('Project Tracking'!$A$8:$A$208,'Participant  Information'!R183,'Project Tracking'!$F$8:$F$200)","v":{"v":0,"d":"0.00"}},"  "]
[{"$nulls":16},{"$f":"SUMIF('Project Tracking'!$A$8:$A$208,'Participant  Information'!R184,'Project Tracking'!$F$8:$F$200)","v":{"v":0,"d":"0.00"}},"  "]
[{"$nulls":16},{"$f":"SUMIF('Project Tracking'!$A$8:$A$208,'Participant  Information'!R185,'Project Tracking'!$F$8:$F$200)","v":{"v":0,"d":"0.00"}},"  "]
[{"$nulls":16},{"$f":"SUMIF('Project Tracking'!$A$8:$A$208,'Participant  Information'!R186,'Project Tracking'!$F$8:$F$200)","v":{"v":0,"d":"0.00"}},"  "]
[{"$nulls":16},{"$f":"SUMIF('Project Tracking'!$A$8:$A$208,'Participant  Information'!R187,'Project Tracking'!$F$8:$F$200)","v":{"v":0,"d":"0.00"}},"  "]
[{"$nulls":16},{"$f":"SUMIF('Project Tracking'!$A$8:$A$208,'Participant  Information'!R188,'Project Tracking'!$F$8:$F$200)","v":{"v":0,"d":"0.00"}},"  "]
[{"$nulls":16},{"$f":"SUMIF('Project Tracking'!$A$8:$A$208,'Participant  Information'!R189,'Project Tracking'!$F$8:$F$200)","v":{"v":0,"d":"0.00"}},"  "]
[{"$nulls":16},{"$f":"SUMIF('Project Tracking'!$A$8:$A$208,'Participant  Information'!R190,'Project Tracking'!$F$8:$F$200)","v":{"v":0,"d":"0.00"}},"  "]
[{"$nulls":16},{"$f":"SUMIF('Project Tracking'!$A$8:$A$208,'Participant  Information'!R191,'Project Tracking'!$F$8:$F$200)","v":{"v":0,"d":"0.00"}},"  "]
[{"$nulls":16},{"$f":"SUMIF('Project Tracking'!$A$8:$A$208,'Participant  Information'!R192,'Project Tracking'!$F$8:$F$200)","v":{"v":0,"d":"0.00"}},"  "]
[{"$nulls":16},{"$f":"SUMIF('Project Tracking'!$A$8:$A$208,'Participant  Information'!R193,'Project Tracking'!$F$8:$F$200)","v":{"v":0,"d":"0.00"}},"  "]
[{"$nulls":16},{"$f":"SUMIF('Project Tracking'!$A$8:$A$208,'Participant  Information'!R194,'Project Tracking'!$F$8:$F$200)","v":{"v":0,"d":"0.00"}},"  "]
[{"$nulls":16},{"$f":"SUMIF('Project Tracking'!$A$8:$A$208,'Participant  Information'!R195,'Project Tracking'!$F$8:$F$200)","v":{"v":0,"d":"0.00"}},"  "]
[{"$nulls":16},{"$f":"SUMIF('Project Tracking'!$A$8:$A$208,'Participant  Information'!R196,'Project Tracking'!$F$8:$F$200)","v":{"v":0,"d":"0.00"}},"  "]
[{"$nulls":16},{"$f":"SUMIF('Project Tracking'!$A$8:$A$208,'Participant  Information'!R197,'Project Tracking'!$F$8:$F$200)","v":{"v":0,"d":"0.00"}},"  "]
[{"$nulls":16},{"$f":"SUMIF('Project Tracking'!$A$8:$A$208,'Participant  Information'!R198,'Project Tracking'!$F$8:$F$200)","v":{"v":0,"d":"0.00"}},"  "]

{"sheet":"Project Information","index":2,"n_rows":200,"n_cols":14,"rows_kept":200}
["PUBLIC LANDS CORPS PROJECT INFORMATION FORM"]
[]
[]
[]
[]
["Partner ","Project"]
["Partner Name","Agreement Number","Deputy Area/Office","FS Unit\n(Location)","Start Date  MM/DD/YYYY","End Date MM/DD/YYYY","Project Title","FS Supervisor Last Name","FS Supervisor First Name","FS Supervisor Email Address","Certificate Status ","Certificate \nDate of Completion \nMM/DD/YYYY","Project Total Hours","Narrrative/Comments"]
[{"$nulls":12},{"$f":"IF(SUMIF('Project Tracking'!$C$8:$C$200,'Project Information'!G8,'Project Tracking'!$F$8:$F$200)=0,\"\",SUMIF('Project Tracking'!$C$8:$C$200,'Project Information'!G8,'Project Tracking'!$F$8:$F$200))","v":""}]
[{"$nulls":12},{"$f":"IF(SUMIF('Project Tracking'!$C$8:$C$200,'Project Information'!G9,'Project Tracking'!$F$8:$F$200)=0,\"\",SUMIF('Project Tracking'!$C$8:$C$200,'Project Information'!G9,'Project Tracking'!$F$8:$F$200))","v":""}]
[{"$nulls":12},{"$f":"IF(SUMIF('Project Tracking'!$C$8:$C$200,'Project Information'!G10,'Project Tracking'!$F$8:$F$200)=0,\"\",SUMIF('Project Tracking'!$C$8:$C$200,'Project Information'!G10,'Project Tracking'!$F$8:$F$200))","v":""}]
[{"$nulls":12},{"$f":"IF(SUMIF('Project Tracking'!$C$8:$C$200,'Project Information'!G11,'Project Tracking'!$F$8:$F$200)=0,\"\",SUMIF('Project Tracking'!$C$8:$C$200,'Project Information'!G11,'Project Tracking'!$F$8:$F$200))","v":""}]
[{"$nulls":12},{"$f":"IF(SUMIF('Project Tracking'!$C$8:$C$200,'Project Information'!G12,'Project Tracking'!$F$8:$F$200)=0,\"\",SUMIF('Project Tracking'!$C$8:$C$200,'Project Information'!G12,'Project Tracking'!$F$8:$F$200))","v":""}]
[{"$nulls":12},{"$f":"IF(SUMIF('Project Tracking'!$C$8:$C$200,'Project Information'!G13,'Project Tracking'!$F$8:$F$200)=0,\"\",SUMIF('Project Tracking'!$C$8:$C$200,'Project Information'!G13,'Project Tracking'!$F$8:$F$200))","v":""}]
[{"$nulls":12},{"$f":"IF(SUMIF('Project Tracking'!$C$8:$C$200,'Project Information'!G14,'Project Tracking'!$F$8:$F$200)=0,\"\",SUMIF('Project Tracking'!$C$8:$C$200,'Project Information'!G14,'Project Tracking'!$F$8:$F$200))","v":""}]
[{"$nulls":12},{"$f":"IF(SUMIF('Project Tracking'!$C$8:$C$200,'Project Information'!G15,'Project Tracking'!$F$8:$F$200)=0,\"\",SUMIF('Project Tracking'!$C$8:$C$200,'Project Information'!G15,'Project Tracking'!$F$8:$F$200))","v":""}]
[{"$nulls":12},{"$f":"IF(SUMIF('Project Tracking'!$C$8:$C$200,'Project Information'!G16,'Project Tracking'!$F$8:$F$200)=0,\"\",SUMIF('Project Tracking'!$C$8:$C$200,'Project Information'!G16,'Project Tracking'!$F$8:$F$200))","v":""}]
[{"$nulls":12},{"$f":"IF(SUMIF('Project Tracking'!$C$8:$C$200,'Project Information'!G17,'Project Tracking'!$F$8:$F$200)=0,\"\",SUMIF('Project Tracking'!$C$8:$C$200,'Project Information'!G17,'Project Tracking'!$F$8:$F$200))","v":""}]
[{"$nulls":12},{"$f":"IF(SUMIF('Project Tracking'!$C$8:$C$200,'Project Information'!G18,'Project Tracking'!$F$8:$F$200)=0,\"\",SUMIF('Project Tracking'!$C$8:$C$200,'Project Information'!G18,'Project Tracking'!$F$8:$F$200))","v":""}]
[{"$nulls":12},{"$f":"IF(SUMIF('Project Tracking'!$C$8:$C$200,'Project Information'!G19,'Project Tracking'!$F$8:$F$200)=0,\"\",SUMIF('Project Tracking'!$C$8:$C$200,'Project Information'!G19,'Project Tracking'!$F$8:$F$200))","v":""}]
[{"$nulls":12},{"$f":"IF(SUMIF('Project Tracking'!$C$8:$C$200,'Project Information'!G20,'Project Tracking'!$F$8:$F$200)=0,\"\",SUMIF('Project Tracking'!$C$8:$C$200,'Project Information'!G20,'Project Tracking'!$F$8:$F$200))","v":""}]
[{"$nulls":12},{"$f":"IF(SUMIF('Project Tracking'!$C$8:$C$200,'Project Information'!G21,'Project Tracking'!$F$8:$F$200)=0,\"\",SUMIF('Project Tracking'!$C$8:$C$200,'Project Information'!G21,'Project Tracking'!$F$8:$F$200))","v":""}]
[{"$nulls":12},{"$f":"IF(SUMIF('Project Tracking'!$C$8:$C$200,'Project Information'!G22,'Project Tracking'!$F$8:$F$200)=0,\"\",SUMIF('Project Tracking'!$C$8:$C$200,'Project Information'!G22,'Project Tracking'!$F$8:$F$200))","v":""}]
[{"$nulls":12},{"$f":"IF(SUMIF('Project Tracking'!$C$8:$C$200,'Project Information'!G23,'Project Tracking'!$F$8:$F$200)=0,\"\",SUMIF('Project Tracking'!$C$8:$C$200,'Project Information'!G23,'Project Tracking'!$F$8:$F$200))","v":""}]
[{"$nulls":12},{"$f":"IF(SUMIF('Project Tracking'!$C$8:$C$200,'Project Information'!G24,'Project Tracking'!$F$8:$F$200)=0,\"\",SUMIF('Project Tracking'!$C$8:$C$200,'Project Information'!G24,'Project Tracking'!$F$8:$F$200))","v":""}]
[{"$nulls":12},{"$f":"IF(SUMIF('Project Tracking'!$C$8:$C$200,'Project Information'!G25,'Project Tracking'!$F$8:$F$200)=0,\"\",SUMIF('Project Tracking'!$C$8:$C$200,'Project Information'!G25,'Project Tracking'!$F$8:$F$200))","v":""}]
[{"$nulls":12},{"$f":"IF(SUMIF('Project Tracking'!$C$8:$C$200,'Project Information'!G26,'Project Tracking'!$F$8:$F$200)=0,\"\",SUMIF('Project Tracking'!$C$8:$C$200,'Project Information'!G26,'Project Tracking'!$F$8:$F$200))","v":""}]
[{"$nulls":12},{"$f":"IF(SUMIF('Project Tracking'!$C$8:$C$200,'Project Information'!G27,'Project Tracking'!$F$8:$F$200)=0,\"\",SUMIF('Project Tracking'!$C$8:$C$200,'Project Information'!G27,'Project Tracking'!$F$8:$F$200))","v":""}]
[{"$nulls":12},{"$f":"IF(SUMIF('Project Tracking'!$C$8:$C$200,'Project Information'!G28,'Project Tracking'!$F$8:$F$200)=0,\"\",SUMIF('Project Tracking'!$C$8:$C$200,'Project Information'!G28,'Project Tracking'!$F$8:$F$200))","v":""}]
[{"$nulls":12},{"$f":"IF(SUMIF('Project Tracking'!$C$8:$C$200,'Project Information'!G29,'Project Tracking'!$F$8:$F$200)=0,\"\",SUMIF('Project Tracking'!$C$8:$C$200,'Project Information'!G29,'Project Tracking'!$F$8:$F$200))","v":""}]
[{"$nulls":12},{"$f":"IF(SUMIF('Project Tracking'!$C$8:$C$200,'Project Information'!G30,'Project Tracking'!$F$8:$F$200)=0,\"\",SUMIF('Project Tracking'!$C$8:$C$200,'Project Information'!G30,'Project Tracking'!$F$8:$F$200))","v":""}]
[{"$nulls":12},{"$f":"IF(SUMIF('Project Tracking'!$C$8:$C$200,'Project Information'!G31,'Project Tracking'!$F$8:$F$200)=0,\"\",SUMIF('Project Tracking'!$C$8:$C$200,'Project Information'!G31,'Project Tracking'!$F$8:$F$200))","v":""}]
[{"$nulls":12},{"$f":"IF(SUMIF('Project Tracking'!$C$8:$C$200,'Project Information'!G32,'Project Tracking'!$F$8:$F$200)=0,\"\",SUMIF('Project Tracking'!$C$8:$C$200,'Project Information'!G32,'Project Tracking'!$F$8:$F$200))","v":""}]
[{"$nulls":12},{"$f":"IF(SUMIF('Project Tracking'!$C$8:$C$200,'Project Information'!G33,'Project Tracking'!$F$8:$F$200)=0,\"\",SUMIF('Project Tracking'!$C$8:$C$200,'Project Information'!G33,'Project Tracking'!$F$8:$F$200))","v":""}]
[{"$nulls":12},{"$f":"IF(SUMIF('Project Tracking'!$C$8:$C$200,'Project Information'!G34,'Project Tracking'!$F$8:$F$200)=0,\"\",SUMIF('Project Tracking'!$C$8:$C$200,'Project Information'!G34,'Project Tracking'!$F$8:$F$200))","v":""}]
[{"$nulls":12},{"$f":"IF(SUMIF('Project Tracking'!$C$8:$C$200,'Project Information'!G35,'Project Tracking'!$F$8:$F$200)=0,\"\",SUMIF('Project Tracking'!$C$8:$C$200,'Project Information'!G35,'Project Tracking'!$F$8:$F$200))","v":""}]
[{"$nulls":12},{"$f":"IF(SUMIF('Project Tracking'!$C$8:$C$200,'Project Information'!G36,'Project Tracking'!$F$8:$F$200)=0,\"\",SUMIF('Project Tracking'!$C$8:$C$200,'Project Information'!G36,'Project Tracking'!$F$8:$F$200))","v":""}]
[{"$nulls":12},{"$f":"IF(SUMIF('Project Tracking'!$C$8:$C$200,'Project Information'!G37,'Project Tracking'!$F$8:$F$200)=0,\"\",SUMIF('Project Tracking'!$C$8:$C$200,'Project Information'!G37,'Project Tracking'!$F$8:$F$200))","v":""}]
[{"$nulls":12},{"$f":"IF(SUMIF('Project Tracking'!$C$8:$C$200,'Project Information'!G38,'Project Tracking'!$F$8:$F$200)=0,\"\",SUMIF('Project Tracking'!$C$8:$C$200,'Project Information'!G38,'Project Tracking'!$F$8:$F$200))","v":""}]
[{"$nulls":12},{"$f":"IF(SUMIF('Project Tracking'!$C$8:$C$200,'Project Information'!G39,'Project Tracking'!$F$8:$F$200)=0,\"\",SUMIF('Project Tracking'!$C$8:$C$200,'Project Information'!G39,'Project Tracking'!$F$8:$F$200))","v":""}]
[{"$nulls":12},{"$f":"IF(SUMIF('Project Tracking'!$C$8:$C$200,'Project Information'!G40,'Project Tracking'!$F$8:$F$200)=0,\"\",SUMIF('Project Tracking'!$C$8:$C$200,'Project Information'!G40,'Project Tracking'!$F$8:$F$200))","v":""}]
[{"$nulls":12},{"$f":"IF(SUMIF('Project Tracking'!$C$8:$C$200,'Project Information'!G41,'Project Tracking'!$F$8:$F$200)=0,\"\",SUMIF('Project Tracking'!$C$8:$C$200,'Project Information'!G41,'Project Tracking'!$F$8:$F$200))","v":""}]
[{"$nulls":12},{"$f":"IF(SUMIF('Project Tracking'!$C$8:$C$200,'Project Information'!G42,'Project Tracking'!$F$8:$F$200)=0,\"\",SUMIF('Project Tracking'!$C$8:$C$200,'Project Information'!G42,'Project Tracking'!$F$8:$F$200))","v":""}]
[{"$nulls":12},{"$f":"IF(SUMIF('Project Tracking'!$C$8:$C$200,'Project Information'!G43,'Project Tracking'!$F$8:$F$200)=0,\"\",SUMIF('Project Tracking'!$C$8:$C$200,'Project Information'!G43,'Project Tracking'!$F$8:$F$200))","v":""}]
[{"$nulls":12},{"$f":"IF(SUMIF('Project Tracking'!$C$8:$C$200,'Project Information'!G44,'Project Tracking'!$F$8:$F$200)=0,\"\",SUMIF('Project Tracking'!$C$8:$C$200,'Project Information'!G44,'Project Tracking'!$F$8:$F$200))","v":""}]
[{"$nulls":12},{"$f":"IF(SUMIF('Project Tracking'!$C$8:$C$200,'Project Information'!G45,'Project Tracking'!$F$8:$F$200)=0,\"\",SUMIF('Project Tracking'!$C$8:$C$200,'Project Information'!G45,'Project Tracking'!$F$8:$F$200))","v":""}]
[{"$nulls":12},{"$f":"IF(SUMIF('Project Tracking'!$C$8:$C$200,'Project Information'!G46,'Project Tracking'!$F$8:$F$200)=0,\"\",SUMIF('Project Tracking'!$C$8:$C$200,'Project Information'!G46,'Project Tracking'!$F$8:$F$200))","v":""}]
[{"$nulls":12},{"$f":"IF(SUMIF('Project Tracking'!$C$8:$C$200,'Project Information'!G47,'Project Tracking'!$F$8:$F$200)=0,\"\",SUMIF('Project Tracking'!$C$8:$C$200,'Project Information'!G47,'Project Tracking'!$F$8:$F$200))","v":""}]
[{"$nulls":12},{"$f":"IF(SUMIF('Project Tracking'!$C$8:$C$200,'Project Information'!G48,'Project Tracking'!$F$8:$F$200)=0,\"\",SUMIF('Project Tracking'!$C$8:$C$200,'Project Information'!G48,'Project Tracking'!$F$8:$F$200))","v":""}]
[{"$nulls":12},{"$f":"IF(SUMIF('Project Tracking'!$C$8:$C$200,'Project Information'!G49,'Project Tracking'!$F$8:$F$200)=0,\"\",SUMIF('Project Tracking'!$C$8:$C$200,'Project Information'!G49,'Project Tracking'!$F$8:$F$200))","v":""}]
[{"$nulls":12},{"$f":"IF(SUMIF('Project Tracking'!$C$8:$C$200,'Project Information'!G50,'Project Tracking'!$F$8:$F$200)=0,\"\",SUMIF('Project Tracking'!$C$8:$C$200,'Project Information'!G50,'Project Tracking'!$F$8:$F$200))","v":""}]
[{"$nulls":12},{"$f":"IF(SUMIF('Project Tracking'!$C$8:$C$200,'Project Information'!G51,'Project Tracking'!$F$8:$F$200)=0,\"\",SUMIF('Project Tracking'!$C$8:$C$200,'Project Information'!G51,'Project Tracking'!$F$8:$F$200))","v":""}]
[{"$nulls":12},{"$f":"IF(SUMIF('Project Tracking'!$C$8:$C$200,'Project Information'!G52,'Project Tracking'!$F$8:$F$200)=0,\"\",SUMIF('Project Tracking'!$C$8:$C$200,'Project Information'!G52,'Project Tracking'!$F$8:$F$200))","v":""}]
[{"$nulls":12},{"$f":"IF(SUMIF('Project Tracking'!$C$8:$C$200,'Project Information'!G53,'Project Tracking'!$F$8:$F$200)=0,\"\",SUMIF('Project Tracking'!$C$8:$C$200,'Project Information'!G53,'Project Tracking'!$F$8:$F$200))","v":""}]
[{"$nulls":12},{"$f":"IF(SUMIF('Project Tracking'!$C$8:$C$200,'Project Information'!G54,'Project Tracking'!$F$8:$F$200)=0,\"\",SUMIF('Project Tracking'!$C$8:$C$200,'Project Information'!G54,'Project Tracking'!$F$8:$F$200))","v":""}]
[{"$nulls":12},{"$f":"IF(SUMIF('Project Tracking'!$C$8:$C$200,'Project Information'!G55,'Project Tracking'!$F$8:$F$200)=0,\"\",SUMIF('Project Tracking'!$C$8:$C$200,'Project Information'!G55,'Project Tracking'!$F$8:$F$200))","v":""}]
[{"$nulls":12},{"$f":"IF(SUMIF('Project Tracking'!$C$8:$C$200,'Project Information'!G56,'Project Tracking'!$F$8:$F$200)=0,\"\",SUMIF('Project Tracking'!$C$8:$C$200,'Project Information'!G56,'Project Tracking'!$F$8:$F$200))","v":""}]
[{"$nulls":12},{"$f":"IF(SUMIF('Project Tracking'!$C$8:$C$200,'Project Information'!G57,'Project Tracking'!$F$8:$F$200)=0,\"\",SUMIF('Project Tracking'!$C$8:$C$200,'Project Information'!G57,'Project Tracking'!$F$8:$F$200))","v":""}]
[{"$nulls":12},{"$f":"IF(SUMIF('Project Tracking'!$C$8:$C$200,'Project Information'!G58,'Project Tracking'!$F$8:$F$200)=0,\"\",SUMIF('Project Tracking'!$C$8:$C$200,'Project Information'!G58,'Project Tracking'!$F$8:$F$200))","v":""}]
[{"$nulls":12},{"$f":"IF(SUMIF('Project Tracking'!$C$8:$C$200,'Project Information'!G59,'Project Tracking'!$F$8:$F$200)=0,\"\",SUMIF('Project Tracking'!$C$8:$C$200,'Project Information'!G59,'Project Tracking'!$F$8:$F$200))","v":""}]
[{"$nulls":12},{"$f":"IF(SUMIF('Project Tracking'!$C$8:$C$200,'Project Information'!G60,'Project Tracking'!$F$8:$F$200)=0,\"\",SUMIF('Project Tracking'!$C$8:$C$200,'Project Information'!G60,'Project Tracking'!$F$8:$F$200))","v":""}]
[{"$nulls":12},{"$f":"IF(SUMIF('Project Tracking'!$C$8:$C$200,'Project Information'!G61,'Project Tracking'!$F$8:$F$200)=0,\"\",SUMIF('Project Tracking'!$C$8:$C$200,'Project Information'!G61,'Project Tracking'!$F$8:$F$200))","v":""}]
[{"$nulls":12},{"$f":"IF(SUMIF('Project Tracking'!$C$8:$C$200,'Project Information'!G62,'Project Tracking'!$F$8:$F$200)=0,\"\",SUMIF('Project Tracking'!$C$8:$C$200,'Project Information'!G62,'Project Tracking'!$F$8:$F$200))","v":""}]
[{"$nulls":12},{"$f":"IF(SUMIF('Project Tracking'!$C$8:$C$200,'Project Information'!G63,'Project Tracking'!$F$8:$F$200)=0,\"\",SUMIF('Project Tracking'!$C$8:$C$200,'Project Information'!G63,'Project Tracking'!$F$8:$F$200))","v":""}]
[{"$nulls":12},{"$f":"IF(SUMIF('Project Tracking'!$C$8:$C$200,'Project Information'!G64,'Project Tracking'!$F$8:$F$200)=0,\"\",SUMIF('Project Tracking'!$C$8:$C$200,'Project Information'!G64,'Project Tracking'!$F$8:$F$200))","v":""}]
[{"$nulls":12},{"$f":"IF(SUMIF('Project Tracking'!$C$8:$C$200,'Project Information'!G65,'Project Tracking'!$F$8:$F$200)=0,\"\",SUMIF('Project Tracking'!$C$8:$C$200,'Project Information'!G65,'Project Tracking'!$F$8:$F$200))","v":""}]
[{"$nulls":12},{"$f":"IF(SUMIF('Project Tracking'!$C$8:$C$200,'Project Information'!G66,'Project Tracking'!$F$8:$F$200)=0,\"\",SUMIF('Project Tracking'!$C$8:$C$200,'Project Information'!G66,'Project Tracking'!$F$8:$F$200))","v":""}]
[{"$nulls":12},{"$f":"IF(SUMIF('Project Tracking'!$C$8:$C$200,'Project Information'!G67,'Project Tracking'!$F$8:$F$200)=0,\"\",SUMIF('Project Tracking'!$C$8:$C$200,'Project Information'!G67,'Project Tracking'!$F$8:$F$200))","v":""}]
[{"$nulls":12},{"$f":"IF(SUMIF('Project Tracking'!$C$8:$C$200,'Project Information'!G68,'Project Tracking'!$F$8:$F$200)=0,\"\",SUMIF('Project Tracking'!$C$8:$C$200,'Project Information'!G68,'Project Tracking'!$F$8:$F$200))","v":""}]
[{"$nulls":12},{"$f":"IF(SUMIF('Project Tracking'!$C$8:$C$200,'Project Information'!G69,'Project Tracking'!$F$8:$F$200)=0,\"\",SUMIF('Project Tracking'!$C$8:$C$200,'Project Information'!G69,'Project Tracking'!$F$8:$F$200))","v":""}]
[{"$nulls":12},{"$f":"IF(SUMIF('Project Tracking'!$C$8:$C$200,'Project Information'!G70,'Project Tracking'!$F$8:$F$200)=0,\"\",SUMIF('Project Tracking'!$C$8:$C$200,'Project Information'!G70,'Project Tracking'!$F$8:$F$200))","v":""}]
[{"$nulls":12},{"$f":"IF(SUMIF('Project Tracking'!$C$8:$C$200,'Project Information'!G71,'Project Tracking'!$F$8:$F$200)=0,\"\",SUMIF('Project Tracking'!$C$8:$C$200,'Project Information'!G71,'Project Tracking'!$F$8:$F$200))","v":""}]
[{"$nulls":12},{"$f":"IF(SUMIF('Project Tracking'!$C$8:$C$200,'Project Information'!G72,'Project Tracking'!$F$8:$F$200)=0,\"\",SUMIF('Project Tracking'!$C$8:$C$200,'Project Information'!G72,'Project Tracking'!$F$8:$F$200))","v":""}]
[{"$nulls":12},{"$f":"IF(SUMIF('Project Tracking'!$C$8:$C$200,'Project Information'!G73,'Project Tracking'!$F$8:$F$200)=0,\"\",SUMIF('Project Tracking'!$C$8:$C$200,'Project Information'!G73,'Project Tracking'!$F$8:$F$200))","v":""}]
[{"$nulls":12},{"$f":"IF(SUMIF('Project Tracking'!$C$8:$C$200,'Project Information'!G74,'Project Tracking'!$F$8:$F$200)=0,\"\",SUMIF('Project Tracking'!$C$8:$C$200,'Project Information'!G74,'Project Tracking'!$F$8:$F$200))","v":""}]
[{"$nulls":12},{"$f":"IF(SUMIF('Project Tracking'!$C$8:$C$200,'Project Information'!G75,'Project Tracking'!$F$8:$F$200)=0,\"\",SUMIF('Project Tracking'!$C$8:$C$200,'Project Information'!G75,'Project Tracking'!$F$8:$F$200))","v":""}]
[{"$nulls":12},{"$f":"IF(SUMIF('Project Tracking'!$C$8:$C$200,'Project Information'!G76,'Project Tracking'!$F$8:$F$200)=0,\"\",SUMIF('Project Tracking'!$C$8:$C$200,'Project Information'!G76,'Project Tracking'!$F$8:$F$200))","v":""}]
[{"$nulls":12},{"$f":"IF(SUMIF('Project Tracking'!$C$8:$C$200,'Project Information'!G77,'Project Tracking'!$F$8:$F$200)=0,\"\",SUMIF('Project Tracking'!$C$8:$C$200,'Project Information'!G77,'Project Tracking'!$F$8:$F$200))","v":""}]
[{"$nulls":12},{"$f":"IF(SUMIF('Project Tracking'!$C$8:$C$200,'Project Information'!G78,'Project Tracking'!$F$8:$F$200)=0,\"\",SUMIF('Project Tracking'!$C$8:$C$200,'Project Information'!G78,'Project Tracking'!$F$8:$F$200))","v":""}]
[{"$nulls":12},{"$f":"IF(SUMIF('Project Tracking'!$C$8:$C$200,'Project Information'!G79,'Project Tracking'!$F$8:$F$200)=0,\"\",SUMIF('Project Tracking'!$C$8:$C$200,'Project Information'!G79,'Project Tracking'!$F$8:$F$200))","v":""}]
[{"$nulls":12},{"$f":"IF(SUMIF('Project Tracking'!$C$8:$C$200,'Project Information'!G80,'Project Tracking'!$F$8:$F$200)=0,\"\",SUMIF('Project Tracking'!$C$8:$C$200,'Project Information'!G80,'Project Tracking'!$F$8:$F$200))","v":""}]
[{"$nulls":12},{"$f":"IF(SUMIF('Project Tracking'!$C$8:$C$200,'Project Information'!G81,'Project Tracking'!$F$8:$F$200)=0,\"\",SUMIF('Project Tracking'!$C$8:$C$200,'Project Information'!G81,'Project Tracking'!$F$8:$F$200))","v":""}]
[{"$nulls":12},{"$f":"IF(SUMIF('Project Tracking'!$C$8:$C$200,'Project Information'!G82,'Project Tracking'!$F$8:$F$200)=0,\"\",SUMIF('Project Tracking'!$C$8:$C$200,'Project Information'!G82,'Project Tracking'!$F$8:$F$200))","v":""}]
[{"$nulls":12},{"$f":"IF(SUMIF('Project Tracking'!$C$8:$C$200,'Project Information'!G83,'Project Tracking'!$F$8:$F$200)=0,\"\",SUMIF('Project Tracking'!$C$8:$C$200,'Project Information'!G83,'Project Tracking'!$F$8:$F$200))","v":""}]
[{"$nulls":12},{"$f":"IF(SUMIF('Project Tracking'!$C$8:$C$200,'Project Information'!G84,'Project Tracking'!$F$8:$F$200)=0,\"\",SUMIF('Project Tracking'!$C$8:$C$200,'Project Information'!G84,'Project Tracking'!$F$8:$F$200))","v":""}]
[{"$nulls":12},{"$f":"IF(SUMIF('Project Tracking'!$C$8:$C$200,'Project Information'!G85,'Project Tracking'!$F$8:$F$200)=0,\"\",SUMIF('Project Tracking'!$C$8:$C$200,'Project Information'!G85,'Project Tracking'!$F$8:$F$200))","v":""}]
[{"$nulls":12},{"$f":"IF(SUMIF('Project Tracking'!$C$8:$C$200,'Project Information'!G86,'Project Tracking'!$F$8:$F$200)=0,\"\",SUMIF('Project Tracking'!$C$8:$C$200,'Project Information'!G86,'Project Tracking'!$F$8:$F$200))","v":""}]
[{"$nulls":12},{"$f":"IF(SUMIF('Project Tracking'!$C$8:$C$200,'Project Information'!G87,'Project Tracking'!$F$8:$F$200)=0,\"\",SUMIF('Project Tracking'!$C$8:$C$200,'Project Information'!G87,'Project Tracking'!$F$8:$F$200))","v":""}]
[{"$nulls":12},{"$f":"IF(SUMIF('Project Tracking'!$C$8:$C$200,'Project Information'!G88,'Project Tracking'!$F$8:$F$200)=0,\"\",SUMIF('Project Tracking'!$C$8:$C$200,'Project Information'!G88,'Project Tracking'!$F$8:$F$200))","v":""}]
[{"$nulls":12},{"$f":"IF(SUMIF('Project Tracking'!$C$8:$C$200,'Project Information'!G89,'Project Tracking'!$F$8:$F$200)=0,\"\",SUMIF('Project Tracking'!$C$8:$C$200,'Project Information'!G89,'Project Tracking'!$F$8:$F$200))","v":""}]
[{"$nulls":12},{"$f":"IF(SUMIF('Project Tracking'!$C$8:$C$200,'Project Information'!G90,'Project Tracking'!$F$8:$F$200)=0,\"\",SUMIF('Project Tracking'!$C$8:$C$200,'Project Information'!G90,'Project Tracking'!$F$8:$F$200))","v":""}]
[{"$nulls":12},{"$f":"IF(SUMIF('Project Tracking'!$C$8:$C$200,'Project Information'!G91,'Project Tracking'!$F$8:$F$200)=0,\"\",SUMIF('Project Tracking'!$C$8:$C$200,'Project Information'!G91,'Project Tracking'!$F$8:$F$200))","v":""}]
[{"$nulls":12},{"$f":"IF(SUMIF('Project Tracking'!$C$8:$C$200,'Project Information'!G92,'Project Tracking'!$F$8:$F$200)=0,\"\",SUMIF('Project Tracking'!$C$8:$C$200,'Project Information'!G92,'Project Tracking'!$F$8:$F$200))","v":""}]
[{"$nulls":12},{"$f":"IF(SUMIF('Project Tracking'!$C$8:$C$200,'Project Information'!G93,'Project Tracking'!$F$8:$F$200)=0,\"\",SUMIF('Project Tracking'!$C$8:$C$200,'Project Information'!G93,'Project Tracking'!$F$8:$F$200))","v":""}]
[{"$nulls":12},{"$f":"IF(SUMIF('Project Tracking'!$C$8:$C$200,'Project Information'!G94,'Project Tracking'!$F$8:$F$200)=0,\"\",SUMIF('Project Tracking'!$C$8:$C$200,'Project Information'!G94,'Project Tracking'!$F$8:$F$200))","v":""}]
[{"$nulls":12},{"$f":"IF(SUMIF('Project Tracking'!$C$8:$C$200,'Project Information'!G95,'Project Tracking'!$F$8:$F$200)=0,\"\",SUMIF('Project Tracking'!$C$8:$C$200,'Project Information'!G95,'Project Tracking'!$F$8:$F$200))","v":""}]
[{"$nulls":12},{"$f":"IF(SUMIF('Project Tracking'!$C$8:$C$200,'Project Information'!G96,'Project Tracking'!$F$8:$F$200)=0,\"\",SUMIF('Project Tracking'!$C$8:$C$200,'Project Information'!G96,'Project Tracking'!$F$8:$F$200))","v":""}]
[{"$nulls":12},{"$f":"IF(SUMIF('Project Tracking'!$C$8:$C$200,'Project Information'!G97,'Project Tracking'!$F$8:$F$200)=0,\"\",SUMIF('Project Tracking'!$C$8:$C$200,'Project Information'!G97,'Project Tracking'!$F$8:$F$200))","v":""}]
[{"$nulls":12},{"$f":"IF(SUMIF('Project Tracking'!$C$8:$C$200,'Project Information'!G98,'Project Tracking'!$F$8:$F$200)=0,\"\",SUMIF('Project Tracking'!$C$8:$C$200,'Project Information'!G98,'Project Tracking'!$F$8:$F$200))","v":""}]
[{"$nulls":12},{"$f":"IF(SUMIF('Project Tracking'!$C$8:$C$200,'Project Information'!G99,'Project Tracking'!$F$8:$F$200)=0,\"\",SUMIF('Project Tracking'!$C$8:$C$200,'Project Information'!G99,'Project Tracking'!$F$8:$F$200))","v":""}]
[{"$nulls":12},{"$f":"IF(SUMIF('Project Tracking'!$C$8:$C$200,'Project Information'!G100,'Project Tracking'!$F$8:$F$200)=0,\"\",SUMIF('Project Tracking'!$C$8:$C$200,'Project Information'!G100,'Project Tracking'!$F$8:$F$200))","v":""}]
[{"$nulls":12},{"$f":"IF(SUMIF('Project Tracking'!$C$8:$C$200,'Project Information'!G101,'Project Tracking'!$F$8:$F$200)=0,\"\",SUMIF('Project Tracking'!$C$8:$C$200,'Project Information'!G101,'Project Tracking'!$F$8:$F$200))","v":""}]
[{"$nulls":12},{"$f":"IF(SUMIF('Project Tracking'!$C$8:$C$200,'Project Information'!G102,'Project Tracking'!$F$8:$F$200)=0,\"\",SUMIF('Project Tracking'!$C$8:$C$200,'Project Information'!G102,'Project Tracking'!$F$8:$F$200))","v":""}]
[{"$nulls":12},{"$f":"IF(SUMIF('Project Tracking'!$C$8:$C$200,'Project Information'!G103,'Project Tracking'!$F$8:$F$200)=0,\"\",SUMIF('Project Tracking'!$C$8:$C$200,'Project Information'!G103,'Project Tracking'!$F$8:$F$200))","v":""}]
[{"$nulls":12},{"$f":"IF(SUMIF('Project Tracking'!$C$8:$C$200,'Project Information'!G104,'Project Tracking'!$F$8:$F$200)=0,\"\",SUMIF('Project Tracking'!$C$8:$C$200,'Project Information'!G104,'Project Tracking'!$F$8:$F$200))","v":""}]
[{"$nulls":12},{"$f":"IF(SUMIF('Project Tracking'!$C$8:$C$200,'Project Information'!G105,'Project Tracking'!$F$8:$F$200)=0,\"\",SUMIF('Project Tracking'!$C$8:$C$200,'Project Information'!G105,'Project Tracking'!$F$8:$F$200))","v":""}]
[{"$nulls":12},{"$f":"IF(SUMIF('Project Tracking'!$C$8:$C$200,'Project Information'!G106,'Project Tracking'!$F$8:$F$200)=0,\"\",SUMIF('Project Tracking'!$C$8:$C$200,'Project Information'!G106,'Project Tracking'!$F$8:$F$200))","v":""}]
[{"$nulls":12},{"$f":"IF(SUMIF('Project Tracking'!$C$8:$C$200,'Project Information'!G107,'Project Tracking'!$F$8:$F$200)=0,\"\",SUMIF('Project Tracking'!$C$8:$C$200,'Project Information'!G107,'Project Tracking'!$F$8:$F$200))","v":""}]
[{"$nulls":12},{"$f":"IF(SUMIF('Project Tracking'!$C$8:$C$200,'Project Information'!G108,'Project Tracking'!$F$8:$F$200)=0,\"\",SUMIF('Project Tracking'!$C$8:$C$200,'Project Information'!G108,'Project Tracking'!$F$8:$F$200))","v":""}]
[{"$nulls":12},{"$f":"IF(SUMIF('Project Tracking'!$C$8:$C$200,'Project Information'!G109,'Project Tracking'!$F$8:$F$200)=0,\"\",SUMIF('Project Tracking'!$C$8:$C$200,'Project Information'!G109,'Project Tracking'!$F$8:$F$200))","v":""}]
[{"$nulls":12},{"$f":"IF(SUMIF('Project Tracking'!$C$8:$C$200,'Project Information'!G110,'Project Tracking'!$F$8:$F$200)=0,\"\",SUMIF('Project Tracking'!$C$8:$C$200,'Project Information'!G110,'Project Tracking'!$F$8:$F$200))","v":""}]
[{"$nulls":12},{"$f":"IF(SUMIF('Project Tracking'!$C$8:$C$200,'Project Information'!G111,'Project Tracking'!$F$8:$F$200)=0,\"\",SUMIF('Project Tracking'!$C$8:$C$200,'Project Information'!G111,'Project Tracking'!$F$8:$F$200))","v":""}]
[{"$nulls":12},{"$f":"IF(SUMIF('Project Tracking'!$C$8:$C$200,'Project Information'!G112,'Project Tracking'!$F$8:$F$200)=0,\"\",SUMIF('Project Tracking'!$C$8:$C$200,'Project Information'!G112,'Project Tracking'!$F$8:$F$200))","v":""}]
[{"$nulls":12},{"$f":"IF(SUMIF('Project Tracking'!$C$8:$C$200,'Project Information'!G113,'Project Tracking'!$F$8:$F$200)=0,\"\",SUMIF('Project Tracking'!$C$8:$C$200,'Project Information'!G113,'Project Tracking'!$F$8:$F$200))","v":""}]
[{"$nulls":12},{"$f":"IF(SUMIF('Project Tracking'!$C$8:$C$200,'Project Information'!G114,'Project Tracking'!$F$8:$F$200)=0,\"\",SUMIF('Project Tracking'!$C$8:$C$200,'Project Information'!G114,'Project Tracking'!$F$8:$F$200))","v":""}]
[{"$nulls":12},{"$f":"IF(SUMIF('Project Tracking'!$C$8:$C$200,'Project Information'!G115,'Project Tracking'!$F$8:$F$200)=0,\"\",SUMIF('Project Tracking'!$C$8:$C$200,'Project Information'!G115,'Project Tracking'!$F$8:$F$200))","v":""}]
[{"$nulls":12},{"$f":"IF(SUMIF('Project Tracking'!$C$8:$C$200,'Project Information'!G116,'Project Tracking'!$F$8:$F$200)=0,\"\",SUMIF('Project Tracking'!$C$8:$C$200,'Project Information'!G116,'Project Tracking'!$F$8:$F$200))","v":""}]
[{"$nulls":12},{"$f":"IF(SUMIF('Project Tracking'!$C$8:$C$200,'Project Information'!G117,'Project Tracking'!$F$8:$F$200)=0,\"\",SUMIF('Project Tracking'!$C$8:$C$200,'Project Information'!G117,'Project Tracking'!$F$8:$F$200))","v":""}]
[{"$nulls":12},{"$f":"IF(SUMIF('Project Tracking'!$C$8:$C$200,'Project Information'!G118,'Project Tracking'!$F$8:$F$200)=0,\"\",SUMIF('Project Tracking'!$C$8:$C$200,'Project Information'!G118,'Project Tracking'!$F$8:$F$200))","v":""}]
[{"$nulls":12},{"$f":"IF(SUMIF('Project Tracking'!$C$8:$C$200,'Project Information'!G119,'Project Tracking'!$F$8:$F$200)=0,\"\",SUMIF('Project Tracking'!$C$8:$C$200,'Project Information'!G119,'Project Tracking'!$F$8:$F$200))","v":""}]
[{"$nulls":12},{"$f":"IF(SUMIF('Project Tracking'!$C$8:$C$200,'Project Information'!G120,'Project Tracking'!$F$8:$F$200)=0,\"\",SUMIF('Project Tracking'!$C$8:$C$200,'Project Information'!G120,'Project Tracking'!$F$8:$F$200))","v":""}]
[{"$nulls":12},{"$f":"IF(SUMIF('Project Tracking'!$C$8:$C$200,'Project Information'!G121,'Project Tracking'!$F$8:$F$200)=0,\"\",SUMIF('Project Tracking'!$C$8:$C$200,'Project Information'!G121,'Project Tracking'!$F$8:$F$200))","v":""}]
[{"$nulls":12},{"$f":"IF(SUMIF('Project Tracking'!$C$8:$C$200,'Project Information'!G122,'Project Tracking'!$F$8:$F$200)=0,\"\",SUMIF('Project Tracking'!$C$8:$C$200,'Project Information'!G122,'Project Tracking'!$F$8:$F$200))","v":""}]
[{"$nulls":12},{"$f":"IF(SUMIF('Project Tracking'!$C$8:$C$200,'Project Information'!G123,'Project Tracking'!$F$8:$F$200)=0,\"\",SUMIF('Project Tracking'!$C$8:$C$200,'Project Information'!G123,'Project Tracking'!$F$8:$F$200))","v":""}]
[{"$nulls":12},{"$f":"IF(SUMIF('Project Tracking'!$C$8:$C$200,'Project Information'!G124,'Project Tracking'!$F$8:$F$200)=0,\"\",SUMIF('Project Tracking'!$C$8:$C$200,'Project Information'!G124,'Project Tracking'!$F$8:$F$200))","v":""}]
[{"$nulls":12},{"$f":"IF(SUMIF('Project Tracking'!$C$8:$C$200,'Project Information'!G125,'Project Tracking'!$F$8:$F$200)=0,\"\",SUMIF('Project Tracking'!$C$8:$C$200,'Project Information'!G125,'Project Tracking'!$F$8:$F$200))","v":""}]
[{"$nulls":12},{"$f":"IF(SUMIF('Project Tracking'!$C$8:$C$200,'Project Information'!G126,'Project Tracking'!$F$8:$F$200)=0,\"\",SUMIF('Project Tracking'!$C$8:$C$200,'Project Information'!G126,'Project Tracking'!$F$8:$F$200))","v":""}]
[{"$nulls":12},{"$f":"IF(SUMIF('Project Tracking'!$C$8:$C$200,'Project Information'!G127,'Project Tracking'!$F$8:$F$200)=0,\"\",SUMIF('Project Tracking'!$C$8:$C$200,'Project Information'!G127,'Project Tracking'!$F$8:$F$200))","v":""}]
[{"$nulls":12},{"$f":"IF(SUMIF('Project Tracking'!$C$8:$C$200,'Project Information'!G128,'Project Tracking'!$F$8:$F$200)=0,\"\",SUMIF('Project Tracking'!$C$8:$C$200,'Project Information'!G128,'Project Tracking'!$F$8:$F$200))","v":""}]
[{"$nulls":12},{"$f":"IF(SUMIF('Project Tracking'!$C$8:$C$200,'Project Information'!G129,'Project Tracking'!$F$8:$F$200)=0,\"\",SUMIF('Project Tracking'!$C$8:$C$200,'Project Information'!G129,'Project Tracking'!$F$8:$F$200))","v":""}]
[{"$nulls":12},{"$f":"IF(SUMIF('Project Tracking'!$C$8:$C$200,'Project Information'!G130,'Project Tracking'!$F$8:$F$200)=0,\"\",SUMIF('Project Tracking'!$C$8:$C$200,'Project Information'!G130,'Project Tracking'!$F$8:$F$200))","v":""}]
[{"$nulls":12},{"$f":"IF(SUMIF('Project Tracking'!$C$8:$C$200,'Project Information'!G131,'Project Tracking'!$F$8:$F$200)=0,\"\",SUMIF('Project Tracking'!$C$8:$C$200,'Project Information'!G131,'Project Tracking'!$F$8:$F$200))","v":""}]
[{"$nulls":12},{"$f":"IF(SUMIF('Project Tracking'!$C$8:$C$200,'Project Information'!G132,'Project Tracking'!$F$8:$F$200)=0,\"\",SUMIF('Project Tracking'!$C$8:$C$200,'Project Information'!G132,'Project Tracking'!$F$8:$F$200))","v":""}]
[{"$nulls":12},{"$f":"IF(SUMIF('Project Tracking'!$C$8:$C$200,'Project Information'!G133,'Project Tracking'!$F$8:$F$200)=0,\"\",SUMIF('Project Tracking'!$C$8:$C$200,'Project Information'!G133,'Project Tracking'!$F$8:$F$200))","v":""}]
[{"$nulls":12},{"$f":"IF(SUMIF('Project Tracking'!$C$8:$C$200,'Project Information'!G134,'Project Tracking'!$F$8:$F$200)=0,\"\",SUMIF('Project Tracking'!$C$8:$C$200,'Project Information'!G134,'Project Tracking'!$F$8:$F$200))","v":""}]
[{"$nulls":12},{"$f":"IF(SUMIF('Project Tracking'!$C$8:$C$200,'Project Information'!G135,'Project Tracking'!$F$8:$F$200)=0,\"\",SUMIF('Project Tracking'!$C$8:$C$200,'Project Information'!G135,'Project Tracking'!$F$8:$F$200))","v":""}]
[{"$nulls":12},{"$f":"IF(SUMIF('Project Tracking'!$C$8:$C$200,'Project Information'!G136,'Project Tracking'!$F$8:$F$200)=0,\"\",SUMIF('Project Tracking'!$C$8:$C$200,'Project Information'!G136,'Project Tracking'!$F$8:$F$200))","v":""}]
[{"$nulls":12},{"$f":"IF(SUMIF('Project Tracking'!$C$8:$C$200,'Project Information'!G137,'Project Tracking'!$F$8:$F$200)=0,\"\",SUMIF('Project Tracking'!$C$8:$C$200,'Project Information'!G137,'Project Tracking'!$F$8:$F$200))","v":""}]
[{"$nulls":12},{"$f":"IF(SUMIF('Project Tracking'!$C$8:$C$200,'Project Information'!G138,'Project Tracking'!$F$8:$F$200)=0,\"\",SUMIF('Project Tracking'!$C$8:$C$200,'Project Information'!G138,'Project Tracking'!$F$8:$F$200))","v":""}]
[{"$nulls":12},{"$f":"IF(SUMIF('Project Tracking'!$C$8:$C$200,'Project Information'!G139,'Project Tracking'!$F$8:$F$200)=0,\"\",SUMIF('Project Tracking'!$C$8:$C$200,'Project Information'!G139,'Project Tracking'!$F$8:$F$200))","v":""}]
[{"$nulls":12},{"$f":"IF(SUMIF('Project Tracking'!$C$8:$C$200,'Project Information'!G140,'Project Tracking'!$F$8:$F$200)=0,\"\",SUMIF('Project Tracking'!$C$8:$C$200,'Project Information'!G140,'Project Tracking'!$F$8:$F$200))","v":""}]
[{"$nulls":12},{"$f":"IF(SUMIF('Project Tracking'!$C$8:$C$200,'Project Information'!G141,'Project Tracking'!$F$8:$F$200)=0,\"\",SUMIF('Project Tracking'!$C$8:$C$200,'Project Information'!G141,'Project Tracking'!$F$8:$F$200))","v":""}]
[{"$nulls":12},{"$f":"IF(SUMIF('Project Tracking'!$C$8:$C$200,'Project Information'!G142,'Project Tracking'!$F$8:$F$200)=0,\"\",SUMIF('Project Tracking'!$C$8:$C$200,'Project Information'!G142,'Project Tracking'!$F$8:$F$200))","v":""}]
[{"$nulls":12},{"$f":"IF(SUMIF('Project Tracking'!$C$8:$C$200,'Project Information'!G143,'Project Tracking'!$F$8:$F$200)=0,\"\",SUMIF('Project Tracking'!$C$8:$C$200,'Project Information'!G143,'Project Tracking'!$F$8:$F$200))","v":""}]
[{"$nulls":12},{"$f":"IF(SUMIF('Project Tracking'!$C$8:$C$200,'Project Information'!G144,'Project Tracking'!$F$8:$F$200)=0,\"\",SUMIF('Project Tracking'!$C$8:$C$200,'Project Information'!G144,'Project Tracking'!$F$8:$F$200))","v":""}]
[{"$nulls":12},{"$f":"IF(SUMIF('Project Tracking'!$C$8:$C$200,'Project Information'!G145,'Project Tracking'!$F$8:$F$200)=0,\"\",SUMIF('Project Tracking'!$C$8:$C$200,'Project Information'!G145,'Project Tracking'!$F$8:$F$200))","v":""}]
[{"$nulls":12},{"$f":"IF(SUMIF('Project Tracking'!$C$8:$C$200,'Project Information'!G146,'Project Tracking'!$F$8:$F$200)=0,\"\",SUMIF('Project Tracking'!$C$8:$C$200,'Project Information'!G146,'Project Tracking'!$F$8:$F$200))","v":""}]
[{"$nulls":12},{"$f":"IF(SUMIF('Project Tracking'!$C$8:$C$200,'Project Information'!G147,'Project Tracking'!$F$8:$F$200)=0,\"\",SUMIF('Project Tracking'!$C$8:$C$200,'Project Information'!G147,'Project Tracking'!$F$8:$F$200))","v":""}]
[{"$nulls":12},{"$f":"IF(SUMIF('Project Tracking'!$C$8:$C$200,'Project Information'!G148,'Project Tracking'!$F$8:$F$200)=0,\"\",SUMIF('Project Tracking'!$C$8:$C$200,'Project Information'!G148,'Project Tracking'!$F$8:$F$200))","v":""}]
[{"$nulls":12},{"$f":"IF(SUMIF('Project Tracking'!$C$8:$C$200,'Project Information'!G149,'Project Tracking'!$F$8:$F$200)=0,\"\",SUMIF('Project Tracking'!$C$8:$C$200,'Project Information'!G149,'Project Tracking'!$F$8:$F$200))","v":""}]
[{"$nulls":12},{"$f":"IF(SUMIF('Project Tracking'!$C$8:$C$200,'Project Information'!G150,'Project Tracking'!$F$8:$F$200)=0,\"\",SUMIF('Project Tracking'!$C$8:$C$200,'Project Information'!G150,'Project Tracking'!$F$8:$F$200))","v":""}]
[{"$nulls":12},{"$f":"IF(SUMIF('Project Tracking'!$C$8:$C$200,'Project Information'!G151,'Project Tracking'!$F$8:$F$200)=0,\"\",SUMIF('Project Tracking'!$C$8:$C$200,'Project Information'!G151,'Project Tracking'!$F$8:$F$200))","v":""}]
[{"$nulls":12},{"$f":"IF(SUMIF('Project Tracking'!$C$8:$C$200,'Project Information'!G152,'Project Tracking'!$F$8:$F$200)=0,\"\",SUMIF('Project Tracking'!$C$8:$C$200,'Project Information'!G152,'Project Tracking'!$F$8:$F$200))","v":""}]
[{"$nulls":12},{"$f":"IF(SUMIF('Project Tracking'!$C$8:$C$200,'Project Information'!G153,'Project Tracking'!$F$8:$F$200)=0,\"\",SUMIF('Project Tracking'!$C$8:$C$200,'Project Information'!G153,'Project Tracking'!$F$8:$F$200))","v":""}]
[{"$nulls":12},{"$f":"IF(SUMIF('Project Tracking'!$C$8:$C$200,'Project Information'!G154,'Project Tracking'!$F$8:$F$200)=0,\"\",SUMIF('Project Tracking'!$C$8:$C$200,'Project Information'!G154,'Project Tracking'!$F$8:$F$200))","v":""}]
[{"$nulls":12},{"$f":"IF(SUMIF('Project Tracking'!$C$8:$C$200,'Project Information'!G155,'Project Tracking'!$F$8:$F$200)=0,\"\",SUMIF('Project Tracking'!$C$8:$C$200,'Project Information'!G155,'Project Tracking'!$F$8:$F$200))","v":""}]
[{"$nulls":12},{"$f":"IF(SUMIF('Project Tracking'!$C$8:$C$200,'Project Information'!G156,'Project Tracking'!$F$8:$F$200)=0,\"\",SUMIF('Project Tracking'!$C$8:$C$200,'Project Information'!G156,'Project Tracking'!$F$8:$F$200))","v":""}]
[{"$nulls":12},{"$f":"IF(SUMIF('Project Tracking'!$C$8:$C$200,'Project Information'!G157,'Project Tracking'!$F$8:$F$200)=0,\"\",SUMIF('Project Tracking'!$C$8:$C$200,'Project Information'!G157,'Project Tracking'!$F$8:$F$200))","v":""}]
[{"$nulls":12},{"$f":"IF(SUMIF('Project Tracking'!$C$8:$C$200,'Project Information'!G158,'Project Tracking'!$F$8:$F$200)=0,\"\",SUMIF('Project Tracking'!$C$8:$C$200,'Project Information'!G158,'Project Tracking'!$F$8:$F$200))","v":""}]
[{"$nulls":12},{"$f":"IF(SUMIF('Project Tracking'!$C$8:$C$200,'Project Information'!G159,'Project Tracking'!$F$8:$F$200)=0,\"\",SUMIF('Project Tracking'!$C$8:$C$200,'Project Information'!G159,'Project Tracking'!$F$8:$F$200))","v":""}]
[{"$nulls":12},{"$f":"IF(SUMIF('Project Tracking'!$C$8:$C$200,'Project Information'!G160,'Project Tracking'!$F$8:$F$200)=0,\"\",SUMIF('Project Tracking'!$C$8:$C$200,'Project Information'!G160,'Project Tracking'!$F$8:$F$200))","v":""}]
[{"$nulls":12},{"$f":"IF(SUMIF('Project Tracking'!$C$8:$C$200,'Project Information'!G161,'Project Tracking'!$F$8:$F$200)=0,\"\",SUMIF('Project Tracking'!$C$8:$C$200,'Project Information'!G161,'Project Tracking'!$F$8:$F$200))","v":""}]
[{"$nulls":12},{"$f":"IF(SUMIF('Project Tracking'!$C$8:$C$200,'Project Information'!G162,'Project Tracking'!$F$8:$F$200)=0,\"\",SUMIF('Project Tracking'!$C$8:$C$200,'Project Information'!G162,'Project Tracking'!$F$8:$F$200))","v":""}]
[{"$nulls":12},{"$f":"IF(SUMIF('Project Tracking'!$C$8:$C$200,'Project Information'!G163,'Project Tracking'!$F$8:$F$200)=0,\"\",SUMIF('Project Tracking'!$C$8:$C$200,'Project Information'!G163,'Project Tracking'!$F$8:$F$200))","v":""}]
[{"$nulls":12},{"$f":"IF(SUMIF('Project Tracking'!$C$8:$C$200,'Project Information'!G164,'Project Tracking'!$F$8:$F$200)=0,\"\",SUMIF('Project Tracking'!$C$8:$C$200,'Project Information'!G164,'Project Tracking'!$F$8:$F$200))","v":""}]
[{"$nulls":12},{"$f":"IF(SUMIF('Project Tracking'!$C$8:$C$200,'Project Information'!G165,'Project Tracking'!$F$8:$F$200)=0,\"\",SUMIF('Project Tracking'!$C$8:$C$200,'Project Information'!G165,'Project Tracking'!$F$8:$F$200))","v":""}]
[{"$nulls":12},{"$f":"IF(SUMIF('Project Tracking'!$C$8:$C$200,'Project Information'!G166,'Project Tracking'!$F$8:$F$200)=0,\"\",SUMIF('Project Tracking'!$C$8:$C$200,'Project Information'!G166,'Project Tracking'!$F$8:$F$200))","v":""}]
[{"$nulls":12},{"$f":"IF(SUMIF('Project Tracking'!$C$8:$C$200,'Project Information'!G167,'Project Tracking'!$F$8:$F$200)=0,\"\",SUMIF('Project Tracking'!$C$8:$C$200,'Project Information'!G167,'Project Tracking'!$F$8:$F$200))","v":""}]
[{"$nulls":12},{"$f":"IF(SUMIF('Project Tracking'!$C$8:$C$200,'Project Information'!G168,'Project Tracking'!$F$8:$F$200)=0,\"\",SUMIF('Project Tracking'!$C$8:$C$200,'Project Information'!G168,'Project Tracking'!$F$8:$F$200))","v":""}]
[{"$nulls":12},{"$f":"IF(SUMIF('Project Tracking'!$C$8:$C$200,'Project Information'!G169,'Project Tracking'!$F$8:$F$200)=0,\"\",SUMIF('Project Tracking'!$C$8:$C$200,'Project Information'!G169,'Project Tracking'!$F$8:$F$200))","v":""}]
[{"$nulls":12},{"$f":"IF(SUMIF('Project Tracking'!$C$8:$C$200,'Project Information'!G170,'Project Tracking'!$F$8:$F$200)=0,\"\",SUMIF('Project Tracking'!$C$8:$C$200,'Project Information'!G170,'Project Tracking'!$F$8:$F$200))","v":""}]
[{"$nulls":12},{"$f":"IF(SUMIF('Project Tracking'!$C$8:$C$200,'Project Information'!G171,'Project Tracking'!$F$8:$F$200)=0,\"\",SUMIF('Project Tracking'!$C$8:$C$200,'Project Information'!G171,'Project Tracking'!$F$8:$F$200))","v":""}]
[{"$nulls":12},{"$f":"IF(SUMIF('Project Tracking'!$C$8:$C$200,'Project Information'!G172,'Project Tracking'!$F$8:$F$200)=0,\"\",SUMIF('Project Tracking'!$C$8:$C$200,'Project Information'!G172,'Project Tracking'!$F$8:$F$200))","v":""}]
[{"$nulls":12},{"$f":"IF(SUMIF('Project Tracking'!$C$8:$C$200,'Project Information'!G173,'Project Tracking'!$F$8:$F$200)=0,\"\",SUMIF('Project Tracking'!$C$8:$C$200,'Project Information'!G173,'Project Tracking'!$F$8:$F$200))","v":""}]
[{"$nulls":12},{"$f":"IF(SUMIF('Project Tracking'!$C$8:$C$200,'Project Information'!G174,'Project Tracking'!$F$8:$F$200)=0,\"\",SUMIF('Project Tracking'!$C$8:$C$200,'Project Information'!G174,'Project Tracking'!$F$8:$F$200))","v":""}]
[{"$nulls":12},{"$f":"IF(SUMIF('Project Tracking'!$C$8:$C$200,'Project Information'!G175,'Project Tracking'!$F$8:$F$200)=0,\"\",SUMIF('Project Tracking'!$C$8:$C$200,'Project Information'!G175,'Project Tracking'!$F$8:$F$200))","v":""}]
[{"$nulls":12},{"$f":"IF(SUMIF('Project Tracking'!$C$8:$C$200,'Project Information'!G176,'Project Tracking'!$F$8:$F$200)=0,\"\",SUMIF('Project Tracking'!$C$8:$C$200,'Project Information'!G176,'Project Tracking'!$F$8:$F$200))","v":""}]
[{"$nulls":12},{"$f":"IF(SUMIF('Project Tracking'!$C$8:$C$200,'Project Information'!G177,'Project Tracking'!$F$8:$F$200)=0,\"\",SUMIF('Project Tracking'!$C$8:$C$200,'Project Information'!G177,'Project Tracking'!$F$8:$F$200))","v":""}]
[{"$nulls":12},{"$f":"IF(SUMIF('Project Tracking'!$C$8:$C$200,'Project Information'!G178,'Project Tracking'!$F$8:$F$200)=0,\"\",SUMIF('Project Tracking'!$C$8:$C$200,'Project Information'!G178,'Project Tracking'!$F$8:$F$200))","v":""}]
[{"$nulls":12},{"$f":"IF(SUMIF('Project Tracking'!$C$8:$C$200,'Project Information'!G179,'Project Tracking'!$F$8:$F$200)=0,\"\",SUMIF('Project Tracking'!$C$8:$C$200,'Project Information'!G179,'Project Tracking'!$F$8:$F$200))","v":""}]
[{"$nulls":12},{"$f":"IF(SUMIF('Project Tracking'!$C$8:$C$200,'Project Information'!G180,'Project Tracking'!$F$8:$F$200)=0,\"\",SUMIF('Project Tracking'!$C$8:$C$200,'Project Information'!G180,'Project Tracking'!$F$8:$F$200))","v":""}]
[{"$nulls":12},{"$f":"IF(SUMIF('Project Tracking'!$C$8:$C$200,'Project Information'!G181,'Project Tracking'!$F$8:$F$200)=0,\"\",SUMIF('Project Tracking'!$C$8:$C$200,'Project Information'!G181,'Project Tracking'!$F$8:$F$200))","v":""}]
[{"$nulls":12},{"$f":"IF(SUMIF('Project Tracking'!$C$8:$C$200,'Project Information'!G182,'Project Tracking'!$F$8:$F$200)=0,\"\",SUMIF('Project Tracking'!$C$8:$C$200,'Project Information'!G182,'Project Tracking'!$F$8:$F$200))","v":""}]
[{"$nulls":12},{"$f":"IF(SUMIF('Project Tracking'!$C$8:$C$200,'Project Information'!G183,'Project Tracking'!$F$8:$F$200)=0,\"\",SUMIF('Project Tracking'!$C$8:$C$200,'Project Information'!G183,'Project Tracking'!$F$8:$F$200))","v":""}]
[{"$nulls":12},{"$f":"IF(SUMIF('Project Tracking'!$C$8:$C$200,'Project Information'!G184,'Project Tracking'!$F$8:$F$200)=0,\"\",SUMIF('Project Tracking'!$C$8:$C$200,'Project Information'!G184,'Project Tracking'!$F$8:$F$200))","v":""}]
[{"$nulls":12},{"$f":"IF(SUMIF('Project Tracking'!$C$8:$C$200,'Project Information'!G185,'Project Tracking'!$F$8:$F$200)=0,\"\",SUMIF('Project Tracking'!$C$8:$C$200,'Project Information'!G185,'Project Tracking'!$F$8:$F$200))","v":""}]
[{"$nulls":12},{"$f":"IF(SUMIF('Project Tracking'!$C$8:$C$200,'Project Information'!G186,'Project Tracking'!$F$8:$F$200)=0,\"\",SUMIF('Project Tracking'!$C$8:$C$200,'Project Information'!G186,'Project Tracking'!$F$8:$F$200))","v":""}]
[{"$nulls":12},{"$f":"IF(SUMIF('Project Tracking'!$C$8:$C$200,'Project Information'!G187,'Project Tracking'!$F$8:$F$200)=0,\"\",SUMIF('Project Tracking'!$C$8:$C$200,'Project Information'!G187,'Project Tracking'!$F$8:$F$200))","v":""}]
[{"$nulls":12},{"$f":"IF(SUMIF('Project Tracking'!$C$8:$C$200,'Project Information'!G188,'Project Tracking'!$F$8:$F$200)=0,\"\",SUMIF('Project Tracking'!$C$8:$C$200,'Project Information'!G188,'Project Tracking'!$F$8:$F$200))","v":""}]
[{"$nulls":12},{"$f":"IF(SUMIF('Project Tracking'!$C$8:$C$200,'Project Information'!G189,'Project Tracking'!$F$8:$F$200)=0,\"\",SUMIF('Project Tracking'!$C$8:$C$200,'Project Information'!G189,'Project Tracking'!$F$8:$F$200))","v":""}]
[{"$nulls":12},{"$f":"IF(SUMIF('Project Tracking'!$C$8:$C$200,'Project Information'!G190,'Project Tracking'!$F$8:$F$200)=0,\"\",SUMIF('Project Tracking'!$C$8:$C$200,'Project Information'!G190,'Project Tracking'!$F$8:$F$200))","v":""}]
[{"$nulls":12},{"$f":"IF(SUMIF('Project Tracking'!$C$8:$C$200,'Project Information'!G191,'Project Tracking'!$F$8:$F$200)=0,\"\",SUMIF('Project Tracking'!$C$8:$C$200,'Project Information'!G191,'Project Tracking'!$F$8:$F$200))","v":""}]
[{"$nulls":12},{"$f":"IF(SUMIF('Project Tracking'!$C$8:$C$200,'Project Information'!G192,'Project Tracking'!$F$8:$F$200)=0,\"\",SUMIF('Project Tracking'!$C$8:$C$200,'Project Information'!G192,'Project Tracking'!$F$8:$F$200))","v":""}]
[{"$nulls":12},{"$f":"IF(SUMIF('Project Tracking'!$C$8:$C$200,'Project Information'!G193,'Project Tracking'!$F$8:$F$200)=0,\"\",SUMIF('Project Tracking'!$C$8:$C$200,'Project Information'!G193,'Project Tracking'!$F$8:$F$200))","v":""}]
[{"$nulls":12},{"$f":"IF(SUMIF('Project Tracking'!$C$8:$C$200,'Project Information'!G194,'Project Tracking'!$F$8:$F$200)=0,\"\",SUMIF('Project Tracking'!$C$8:$C$200,'Project Information'!G194,'Project Tracking'!$F$8:$F$200))","v":""}]
[{"$nulls":12},{"$f":"IF(SUMIF('Project Tracking'!$C$8:$C$200,'Project Information'!G195,'Project Tracking'!$F$8:$F$200)=0,\"\",SUMIF('Project Tracking'!$C$8:$C$200,'Project Information'!G195,'Project Tracking'!$F$8:$F$200))","v":""}]
[{"$nulls":12},{"$f":"IF(SUMIF('Project Tracking'!$C$8:$C$200,'Project Information'!G196,'Project Tracking'!$F$8:$F$200)=0,\"\",SUMIF('Project Tracking'!$C$8:$C$200,'Project Information'!G196,'Project Tracking'!$F$8:$F$200))","v":""}]
[{"$nulls":12},{"$f":"IF(SUMIF('Project Tracking'!$C$8:$C$200,'Project Information'!G197,'Project Tracking'!$F$8:$F$200)=0,\"\",SUMIF('Project Tracking'!$C$8:$C$200,'Project Information'!G197,'Project Tracking'!$F$8:$F$200))","v":""}]
[{"$nulls":12},{"$f":"IF(SUMIF('Project Tracking'!$C$8:$C$200,'Project Information'!G198,'Project Tracking'!$F$8:$F$200)=0,\"\",SUMIF('Project Tracking'!$C$8:$C$200,'Project Information'!G198,'Project Tracking'!$F$8:$F$200))","v":""}]
[{"$nulls":12},{"$f":"IF(SUMIF('Project Tracking'!$C$8:$C$200,'Project Information'!G199,'Project Tracking'!$F$8:$F$200)=0,\"\",SUMIF('Project Tracking'!$C$8:$C$200,'Project Information'!G199,'Project Tracking'!$F$8:$F$200))","v":""}]
[{"$nulls":12},{"$f":"IF(SUMIF('Project Tracking'!$C$8:$C$200,'Project Information'!G200,'Project Tracking'!$F$8:$F$200)=0,\"\",SUMIF('Project Tracking'!$C$8:$C$200,'Project Information'!G200,'Project Tracking'!$F$8:$F$200))","v":""}]

{"sheet":"Project Tracking","index":3,"n_rows":7,"n_cols":9,"rows_kept":7}
["PUBLIC LANDS CORPS PROJECT TRACKING FORM"]
[]
[]
[]
[]
["Participant","Project"]
["First, Last Name","Position Type","Project Title","Project Description","Type of Work","Project Hours Worked","Certificate Status ","Certificate \nDate of Completion \nMM/DD/YYYY","Narrrative/Comments"]

{"sheet":"Lists","index":4,"n_rows":352,"n_cols":12,"rows_kept":352,"hidden":true}
[]
[]
["Drop Down Menus - List of Values"]
[]
[]
["Participant",{"$nulls":5},"Project"]
["Gender","Ethnicity","Race - 1","Race - 2","Education Level Completed","Military/Veteran Status","Partner Organization","Program Type","Deputy Area/Office","Type of Work","FS Unit\n(Location)","Certificate Status "]
["Male ","Hispanic or Latino ","American Indian or Alaskan Native","American Indian or Alaskan Native","Some High School","Currently serving ","* No partner","Partnerships and volunteer management","Business Operations","Project Management","Allegheny National Forest","Complete"]
["Female","Not Hispanic or Latino ","Asian","Asian","High School Diploma/GED","Reservist","* Other – Add Partner Name to Comments ","Visitor services and site operations","National Forest System ","Surveying","Anaconda Job Corps","In progress"]
["Other Identity/No Identity",null,"Black or African American","Black or African American","Some College","Veteran","Absentee Shawnee Tribe of Oklahoma","Education and interpretation","Office of Finance","Cleanup","Angeles National Forest","Did not complete"]
[null,null,"White","White","Associates Degree","No military service","Absorka-Beartooth Wilderness Foundation","Natural resources management","Office of the Chief","Remediation","Angell Job Corps","N/A"]
[null,null,"Native Hawaiian","Native Hawaiian","BA/BS Degree",null,"Agencia Municipal de Oportunidades de Empleo","Recreation management","Research & Development",null,"Apache-Sitgreaves National Forest"]
[null,null,"Other Pacific Islander","Other Pacific Islander","Professional/Graduate Degree",null,"Alabama A&M University","Cultural and historical resource management","State & Private Forestry",null,"Arapaho-Roosevelt National Forest"]
[null,null,"Other Race","Other Race",null,null,"Alaska Geographic","Geographic information systems (GIS / GPS)","International Programs",null,"Ashley National Forest"]
[{"$nulls":3},"N/A",null,null,"Aldo Leopold High School","Sustainability","Law Enforcement & Investigations",null,"Beaverhead-Deerlodge National Forest"]
[{"$nulls":6},"American Conservation Corps","Backcountry and trail work","Office of Communication",null,"Bighorn National Forest"]
[{"$nulls":6},"American Conservation Experience","program development","Legislative Affairs",null,"Bitterroot National Forest"]
[{"$nulls":6},"American Fisheries Society","Business operations/Information Technology",null,null,"Black Hills National Forest"]
[{"$nulls":6},"American Youth Works","Other ",null,null,"Blackwell Job Corps"]
[{"$nulls":6},"AmeriCorps ",{"$nulls":3},"Boise National Forest"]
[{"$nulls":6},"AmeriCorps National Civilian Conservation Corps",{"$nulls":3},"Boxelder Job Corps"]
[{"$nulls":6},"Anaconda Job Corps",{"$nulls":3},"Bridger-Teton National Forest"]
[{"$nulls":6},"Angell Job Corps",{"$nulls":3},"Caribou-Targhee National Forest"]
[{"$nulls":6},"Angoon Community Association",{"$nulls":3},"Carson National Forest"]
[{"$nulls":6},"Animas High School",{"$nulls":3},"Cass Job Corps"]
[{"$nulls":6},"Anthony Community Service Program",{"$nulls":3},"Centennial Job Corps"]
[{"$nulls":6},"Appalachian Forest Heritage Area",{"$nulls":3},"Chattahoochee-Oconee National Forest"]
[{"$nulls":6},"Appalachian Mountain Club",{"$nulls":3},"Chequamegon-Nicolet National Forest"]
[{"$nulls":6},"Appalachian Trail Conservancy",{"$nulls":3},"Cherokee National Forest"]
[{"$nulls":6},"Arizona Conservation Corps",{"$nulls":3},"Chippewa National Forest"]
[{"$nulls":6},"Arizona Conservation Experience",{"$nulls":3},"Chugach National Forest"]
[{"$nulls":6},"Arizona Corporation Commission ",{"$nulls":3},"Cibola National Forest"]
[{"$nulls":6},"Arizona Game & Fish Department",{"$nulls":3},"Clearwater National Forest"]
[{"$nulls":6},"Arizona Workforce Connections",{"$nulls":3},"Cleveland National Forest"]
[{"$nulls":6},"Arrupe Jesuit High School",{"$nulls":3},"Coconino National Forest"]
[{"$nulls":6},"Arts Alliance of Northern New Hampshire ",{"$nulls":3},"Collbran Job Corps"]
[{"$nulls":6},"Aspen Environment Foundation",{"$nulls":3},"Columbia Basin Job Corps"]
[{"$nulls":6},"Associated Colleges of Illinois",{"$nulls":3},"Columbia River Gorge National Scenic Area"]
[{"$nulls":6},"Awendaw Regional Outreach Center",{"$nulls":3},"Colville National Forest"]
[{"$nulls":6},"Backcountry Horseman of America",{"$nulls":3},"Coronado National Forest"]
[{"$nulls":6},"Bay Mills Indian Community College",{"$nulls":3},"Curlew Job Corps"]
[{"$nulls":6},"Beckett Chimney YMCA",{"$nulls":3},"Custer National Forest"]
[{"$nulls":6},"Belt High School",{"$nulls":3},"Dakota Prairie Grasslands"]
[{"$nulls":6},"Big Island Invasive Species Council",{"$nulls":3},"Daniel Boone National Forest"]
[{"$nulls":6},"Bishop Paiute Tribe ",{"$nulls":3},"Deschutes National Forest"]
[{"$nulls":6},"Blackwell Job Corps Center",{"$nulls":3},"Dixie National Forest"]
[{"$nulls":6},"Bob Marshall Wilderness Foundation",{"$nulls":3},"El Yunque National Forest"]
[{"$nulls":6},"Boxelder Job Corps",{"$nulls":3},"Eldorado National Forest"]
[{"$nulls":6},"Boy Scouts of America",{"$nulls":3},"Fishlake National Forest"]
[{"$nulls":6},"Boys and Girls Club",{"$nulls":3},"Flathead National Forest"]
[{"$nulls":6},"Cal State",{"$nulls":3},"Flatwoods Job Corps"]
[{"$nulls":6},"California Conservation Corps",{"$nulls":3},"Forest Products Laboratory"]
[{"$nulls":6},"California Consortium",{"$nulls":3},"Fort Simcoe Job Corps"]
[{"$nulls":6},"California State University, San Bernardino ",{"$nulls":3},"Francis Marion-Sumter National Forests"]
[{"$nulls":6},"Canyon Country Youth Corps",{"$nulls":3},"Fremont-Winema National Forests"]
[{"$nulls":6},"CAPECO",{"$nulls":3},"Frenchburg Job Corps"]
[{"$nulls":6},"Central Oregon Intergovernmental Council",{"$nulls":3},"Gallatin National Forest"]
[{"$nulls":6},"Chugachmuit Tribe",{"$nulls":3},"George Washington and Jefferson National Forests"]
[{"$nulls":6},"City of Mt. Shasta",{"$nulls":3},"Gifford Pinchot National Forest"]
[{"$nulls":6},"City of Pasadena",{"$nulls":3},"Gila National Forest"]
[{"$nulls":6},"Civic Works",{"$nulls":3},"Golconda Job Corps"]
[{"$nulls":6},"Civil Air Patrol",{"$nulls":3},"Grand Mesa, Uncompahgre, and Gunnison National Forests"]
[{"$nulls":6},"Clark Atlanta University",{"$nulls":3},"Great Onyx Job Corps"]
[{"$nulls":6},"Clearwater Basin Collaborative",{"$nulls":3},"Green Mountain and Finger Lakes National Forests"]
[{"$nulls":6},"Coca-Cola",{"$nulls":3},"Harpers Ferry Job Corps"]
[{"$nulls":6},"Colbran Job Corps",{"$nulls":3},"Helena National Forest"]
[{"$nulls":6},"Colorado Fourteeners Initiative ",{"$nulls":3},"Hiawatha National Forest"]
[{"$nulls":6},"Colorado Off Highway Vehicle Grant Program",{"$nulls":3},"Hoosier National Forest"]
[{"$nulls":6},"Colorado Youth Corps",{"$nulls":3},"Humboldt-Toiyabe National Forest"]
[{"$nulls":6},"Columbia Basin Job Corps",{"$nulls":3},"Huron Manistee National Forest"]
[{"$nulls":6},"Columbia Gorge Ecology Institute",{"$nulls":3},"Idaho Panhandle National Forests"]
[{"$nulls":6},"Comanche Nation",{"$nulls":3},"International Institute of Tropical Forestry"]
[{"$nulls":6},"Concord University",{"$nulls":3},"Inyo National Forest"]
[{"$nulls":6},"Confederated Tribes of the Colville Reservation",{"$nulls":3},"Jacobs Creek Job Corps"]
[{"$nulls":6},"Conference on Asian Pacific American Leadership",{"$nulls":3},"Job Corps"]
[{"$nulls":6},"Conservation Corps of Minnesota and Iowa",{"$nulls":3},"Kaibab National Forest"]
[{"$nulls":6},"Conservation Legacy",{"$nulls":3},"Kisatchie National Forest"]
[{"$nulls":6},"Conservation Outdoor Recreation Education (CORE)",{"$nulls":3},"Klamath National Forest"]
[{"$nulls":6},"Conservation Trust for North Carolina",{"$nulls":3},"Kootenai National Forest"]
[{"$nulls":6},"Conservative Anabaptist Service Program (CASP)",{"$nulls":3},"Lake Tahoe Basin Mgt Unit"]
[{"$nulls":6},"Corps Network",{"$nulls":3},"Land Between The Lakes NRA"]
[{"$nulls":6},"Cottonwoods Canyon Foundation",{"$nulls":3},"Land Trust Alliance"]
[{"$nulls":6},"Coushatta Tribe of Louisiana",{"$nulls":3},"Lassen National Forest"]
[{"$nulls":6},"Cradle of Forestry",{"$nulls":3},"Lewis and Clark National Forest"]
[{"$nulls":6},"Curlew Job Corps",{"$nulls":3},"Lincoln National Forest"]
[{"$nulls":6},"Curry County Juvenile Department",{"$nulls":3},"Lolo National Forest"]
[{"$nulls":6},"Dartmouth College Outing Club",{"$nulls":3},"Los Padres National Forest"]
[{"$nulls":6},"De la Salle High School",{"$nulls":3},"Lyndon Johnson Job Corps"]
[{"$nulls":6},"Delaware Ohio Restoration",{"$nulls":3},"Malheur National Forest"]
[{"$nulls":6},"Delaware, OH",{"$nulls":3},"Manti-LaSal National Forest"]
[{"$nulls":6},"Delta County High School",{"$nulls":3},"Mark Twain National Forest"]
[{"$nulls":6},"Delta Workforce Investment Area",{"$nulls":3},"Medicine Bow-Routt National Forest"]
[{"$nulls":6},"Denver Indian Center",{"$nulls":3},"Mendocino National Forest"]
[{"$nulls":6},"Department of Labor",{"$nulls":3},"Midewin National Tallgrass Prairie"]
[{"$nulls":6},"Department of Natural Resources",{"$nulls":3},"Mingo Job Corps"]
[{"$nulls":6},"Direct hire, no partner",{"$nulls":3},"Modoc National Forest"]
[{"$nulls":6},"Discover Your Northwest",{"$nulls":3},"Monongahela National Forest"]
[{"$nulls":6},"Earth Corps",{"$nulls":3},"Mt Baker-Snoqualmie National Forest"]
[{"$nulls":6},"Eastern Kentucky University ",{"$nulls":3},"Mt Hood National Forest"]
[{"$nulls":6},"Eco Servants",{"$nulls":3},"National Forests in Alabama"]
[{"$nulls":6},"Environment for the Americas",{"$nulls":3},"National Forests in Florida"]
[{"$nulls":6},"Family YMCA",{"$nulls":3},"National Forests in Mississippi"]
[{"$nulls":6},"Farmworker Institute of Education and Leadership Development",{"$nulls":3},"National Forests in North Carolina"]
[{"$nulls":6},"Flatwoods Job Corps",{"$nulls":3},"National Forests in Texas"]
[{"$nulls":6},"Food & Drug Analytical Services",{"$nulls":3},"Nebraska National Forest"]
[{"$nulls":6},"Forest Guild",{"$nulls":3},"Nez Perce-Clearwater National Forest"]
[{"$nulls":6},"Forest Preserve District of DuPage County",{"$nulls":3},"Northeastern Area State and Private Forestry"]
[{"$nulls":6},"Forest Service Interpretive Association",{"$nulls":3},"Northern Research Station"]
[{"$nulls":6},"Forest Youth Success",{"$nulls":3},"Ochoco National Forest"]
[{"$nulls":6},"Fort Campbell Army Base",{"$nulls":3},"Oconaluftee Job Corps"]
[{"$nulls":6},"Fort Leonard Wood Army Base",{"$nulls":3},"Okanogan-Wenatchee National Forests"]
[{"$nulls":6},"Fort Lewis College",{"$nulls":3},"Olympic National Forest"]
[{"$nulls":6},"Fort Simcoe Job Corps",{"$nulls":3},"Ottawa National Forest"]
[{"$nulls":6},"Framing our Community",{"$nulls":3},"Ouachita Job Corps"]
[{"$nulls":6},"Frenchburg Job Corps",{"$nulls":3},"Ouachita National Forest"]
[{"$nulls":6},"Fresno State University",{"$nulls":3},"Ozark-St Francis National Forest"]
[{"$nulls":6},"Friends of King Peak",{"$nulls":3},"Pacific Northwest Research Station"]
[{"$nulls":6},"Friends of Nevada Wilderness",{"$nulls":3},"Pacific Southwest Research Station"]
[{"$nulls":6},"Friends of Scotchman Peaks Wilderness",{"$nulls":3},"Payette National Forest"]
[{"$nulls":6},"Friends of the Eleven Point River",{"$nulls":3},"Pike-San Isabel National Forest"]
[{"$nulls":6},"Future Foundations Family Center",{"$nulls":3},"Pine Knot Job Corps"]
[{"$nulls":6},"Generation Green",{"$nulls":3},"Pine Ridge Job Corps"]
[{"$nulls":6},"Geological Society of America",{"$nulls":3},"Plumas National Forest"]
[{"$nulls":6},"Girl Scouts of America",{"$nulls":3},"Prescott National Forest"]
[{"$nulls":6},"Golconda Job Corps",{"$nulls":3},"R01"]
[{"$nulls":6},"Graham County, Arizona",{"$nulls":3},"R02 "]
[{"$nulls":6},"Grand Rapids, MN",{"$nulls":3},"R03"]
[{"$nulls":6},"Great Basin Institute",{"$nulls":3},"R04"]
[{"$nulls":6},"Great Onyx Job Corps",{"$nulls":3},"R05"]
[{"$nulls":6},"Green Forest Works",{"$nulls":3},"R06"]
[{"$nulls":6},"Green Mountain Club",{"$nulls":3},"R08"]
[{"$nulls":6},"Green Veterans Program ",{"$nulls":3},"R09"]
[{"$nulls":6},"Greening of Detroit",{"$nulls":3},"R10"]
[{"$nulls":6},"Greening Youth Foundation",{"$nulls":3},"Rio Grande National Forest"]
[{"$nulls":6},"Groundwork Cincinnati",{"$nulls":3},"Rocky Mountain Research Station"]
[{"$nulls":6},"Groundwork Denver, Inc. ",{"$nulls":3},"Rogue River-Siskiyou National Forest"]
[{"$nulls":6},"Harney County Training and Employment Consortium",{"$nulls":3},"Salmon-Challis National Forest"]
[{"$nulls":6},"Harpers Ferry Job Corps",{"$nulls":3},"San Bernardino National Forest"]
[{"$nulls":6},"Hawaii Agriculture Research Center",{"$nulls":3},"San Juan National Forest"]
[{"$nulls":6},"Hawaii Dept. of Land and Natural Resources",{"$nulls":3},"Santa Fe National Forest"]
[{"$nulls":6},"Hawaii Division of Forestry and Wildlife",{"$nulls":3},"Sawtooth National Forest"]
[{"$nulls":6},"Heart of Oregon Corps ",{"$nulls":3},"Schenck Job Corps"]
[{"$nulls":6},"Hiawatha Interpretive Association ",{"$nulls":3},"Sequoia National Forest"]
[{"$nulls":6},"Hispanic Association of Colleges and Universities",{"$nulls":3},"Shasta Trinity National Forest"]
[{"$nulls":6},"HistoriCorps",{"$nulls":3},"Shawnee National Forest"]
[{"$nulls":6},"Hocking Athens Perry Community Action Program",{"$nulls":3},"Shoshone National Forest"]
[{"$nulls":6},"Hocking College",{"$nulls":3},"Sierra National Forest"]
[{"$nulls":6},"Hoopa Tribal Civilian Community Corps ",{"$nulls":3},"Siuslaw National Forest"]
[{"$nulls":6},"Humboldt State University",{"$nulls":3},"Six Rivers National Forest"]
[{"$nulls":6},"Idaho Department of Labor",{"$nulls":3},"Southern Research Station"]
[{"$nulls":6},"Idaho Resource Advisory Committee",{"$nulls":3},"Stanislaus National Forest"]
[{"$nulls":6},"Idaho Trail Association",{"$nulls":3},"Superior National Forest"]
[{"$nulls":6},"Idaho Youth Challenge Academy",{"$nulls":3},"Tahoe National Forest"]
[{"$nulls":6},"Idaho Youth Employment Program (YEP)",{"$nulls":3},"Timber Lake Job Corps"]
[{"$nulls":6},"Illinois State University",{"$nulls":3},"Tongass National Forest"]
[{"$nulls":6},"Indian Health Services",{"$nulls":3},"Tonto National Forest"]
[{"$nulls":6},"Interim Community Development Association",{"$nulls":3},"Trapper Creek Job Corps"]
[{"$nulls":6},"Irvine, PA ",{"$nulls":3},"Treasure Lake Job Corps"]
[{"$nulls":6},"Isothermal Planning and Development Commission",{"$nulls":3},"Uinta-Wasatch-Cache National Forest"]
[{"$nulls":6},"Itasca Community College",{"$nulls":3},"Umatilla National Forest"]
[{"$nulls":6},"Itasca Community College ",{"$nulls":3},"Umpqua National Forest"]
[{"$nulls":6},"Jacobs Creek Job Corps",{"$nulls":3},"Wallowa Whitman National Forest"]
[{"$nulls":6},"Jefferson County Community Justice",{"$nulls":3},"Washington Office"]
[{"$nulls":6},"Job Council",{"$nulls":3},"Wayne National Forest"]
[{"$nulls":6},"Jolly Rovers Trail Crew",{"$nulls":3},"Weber Basin Job Corps"]
[{"$nulls":6},"Kane EF, PA",{"$nulls":3},"White Mountain National Forest"]
[{"$nulls":6},"Kane Experimental Forest",{"$nulls":3},"White River National Forest"]
[{"$nulls":6},"Kentucky State University",{"$nulls":3},"Willamette National Forest"]
[{"$nulls":6},"Kern Valley High School",{"$nulls":3},"Wolf Creek Job Corps"]
[{"$nulls":6},"Kupu",{"$nulls":3},"Other"]
[{"$nulls":6},"Lac Courte Oreilles Band of Lake Superior Chippewa"]
[{"$nulls":6},"Lac Vieux Desert Band of Lake Superior Chippewa"]
[{"$nulls":6},"Land Between the Lakes Association"]
[{"$nulls":6},"Lane Metro Youth Corps"]
[{"$nulls":6},"Lansing Entomology"]
[{"$nulls":6},"Lansing. MI"]
[{"$nulls":6},"Lead/Deadwood High School"]
[{"$nulls":6},"Leech Lake Tribal College"]
[{"$nulls":6},"Lewis University"]
[{"$nulls":6},"Lexington School for the Deaf"]
[{"$nulls":6},"Linn County Juvenile Crew"]
[{"$nulls":6},"Lomakatsi Restoration Project"]
[{"$nulls":6},"Los Angeles Conservation Corps"]
[{"$nulls":6},"Los Padres Forest Association"]
[{"$nulls":6},"Louisiana State University"]
[{"$nulls":6},"Lower Brule Sioux Tribe"]
[{"$nulls":6},"Lyndon B. Johnson Job Corps"]
[{"$nulls":6},"Mauna Kea Watershed Alliance"]
[{"$nulls":6},"McKenzie School"]
[{"$nulls":6},"Michigan Department of Natural Resources"]
[{"$nulls":6},"Michigan Rehabilitative Services"]
[{"$nulls":6},"Michigan University"]
[{"$nulls":6},"Michigan Works"]
[{"$nulls":6},"Mid Klamath Watershed Council"]
[{"$nulls":6},"Migrant Education Program"]
[{"$nulls":6},"Mile High Youth Corps"]
[{"$nulls":6},"Milwaukee Public Museum "]
[{"$nulls":6},"Mingo Job Corps"]
[{"$nulls":6},"Mis Hermanos Pequintos"]
[{"$nulls":6},"Missouri Conservation Heritage Foundation"]
[{"$nulls":6},"Missouri University of Science and Technology"]
[{"$nulls":6},"Missouri Western State University"]
[{"$nulls":6},"Mobilize Green"]
[{"$nulls":6},"Montana Conservation Corps"]
[{"$nulls":6},"Montana Department of Labor & Industry"]
[{"$nulls":6},"Montana Discovery Foundation"]
[{"$nulls":6},"Montana Wilderness Association"]
[{"$nulls":6},"Montrose/Olathe High School"]
[{"$nulls":6},"Morgantown Invasive Plants "]
[{"$nulls":6},"Morgantown, WV"]
[{"$nulls":6},"Mt. Adams Institute"]
[{"$nulls":6},"Municipality of Luquillo "]
[{"$nulls":6},"Murray State University"]
[{"$nulls":6},"National Forest Foundation"]
[{"$nulls":6},"National Guard"]
[{"$nulls":6},"National Hispanic Environmental Council"]
[{"$nulls":6},"National Wild Turkey Federation"]
[{"$nulls":6},"Native American Fish & Wildlife Society"]
[{"$nulls":6},"Natural Resource Conservation Service"]
[{"$nulls":6},"New Mexico State University"]
[{"$nulls":6},"New Mexico Youth Conservation Corps"]
[{"$nulls":6},"Next Door"]
[{"$nulls":6},"North Carolina State University"]
[{"$nulls":6},"North Fork of the John Day River Watershed Council"]
[{"$nulls":6},"North Georgia Technical College"]
[{"$nulls":6},"Northern Arizona University"]
[{"$nulls":6},"Northern Bedrock Conservation Corps"]
[{"$nulls":6},"Northern Lights YMCA "]
[{"$nulls":6},"Northland College"]
[{"$nulls":6},"Northwest Youth Corps"]
[{"$nulls":6},"Norwood High School"]
[{"$nulls":6},"Oak Ridge Institute for Science and Education"]
[{"$nulls":6},"Oconaluftee Job Corps"]
[{"$nulls":6},"Oneida Nation"]
[{"$nulls":6},"Operation Warfighter"]
[{"$nulls":6},"Orange County Fire Authority "]
[{"$nulls":6},"Oregon Youth Conservation Corps"]
[{"$nulls":6},"Ouachita Job Corps"]
[{"$nulls":6},"Ozark Trail Association "]
[{"$nulls":6},"Pacific Crest Trail Association "]
[{"$nulls":6},"Pacific Northwest Trails Association"]
[{"$nulls":6},"Pacoima Beautiful"]
[{"$nulls":6},"Palmetto Youth Connections "]
[{"$nulls":6},"Palouse-Clearwater Environmental Initiative "]
[{"$nulls":6},"Partners of Joyce Kilmer-Slickrock Wilderness "]
[{"$nulls":6},"People Inc."]
[{"$nulls":6},"Phoenix School of Roseburg"]
[{"$nulls":6},"Pikes Peak Community College"]
[{"$nulls":6},"Pine Knot Job Corps"]
[{"$nulls":6},"Pine Ridge Job Corps"]
[{"$nulls":6},"Plainfield Central High School"]
[{"$nulls":6},"Pleasant Hill High School"]
[{"$nulls":6},"Portland Community College"]
[{"$nulls":6},"Randolph Mountain Club"]
[{"$nulls":6},"Resource Advisory Council"]
[{"$nulls":6},"Rhinelander, WI"]
[{"$nulls":6},"RMFI"]
[{"$nulls":6},"Rockaway Waterfront Alliance"]
[{"$nulls":6},"Rocky Mountain Conservation Corps"]
[{"$nulls":6},"Rocky Mountain Field Institute "]
[{"$nulls":6},"Rocky Mountain Youth Corps "]
[{"$nulls":6},"Rotary Club "]
[{"$nulls":6},"Salvation Army Outdoors"]
[{"$nulls":6},"Sam Houston State University"]
[{"$nulls":6},"San Gabriel Valley Conservation Corps"]
[{"$nulls":6},"San Gorgonio Wilderness Association"]
[{"$nulls":6},"San Juan Mountains Association "]
[{"$nulls":6},"Sand Hills Public Schools"]
[{"$nulls":6},"Schenck Job Corps"]
[{"$nulls":6},"Scott Valley Unified School District "]
[{"$nulls":6},"Seattle Parks and Recreation "]
[{"$nulls":6},"SEEDS"]
[{"$nulls":6},"Selway Bitterroot Frank Church Foundation"]
[{"$nulls":6},"Shawnee Volunteer Corps"]
[{"$nulls":6},"Siskiyou Mountain Club"]
[{"$nulls":6},"Slippery Rock University"]
[{"$nulls":6},"South Dakota "]
[{"$nulls":6},"Southeast Alaska Guidance Association"]
[{"$nulls":6},"Southeast Conservation Corps"]
[{"$nulls":6},"Southern Appalachian Wilderness Stewards"]
[{"$nulls":6},"Southern California Mountains Foundation"]
[{"$nulls":6},"Southern Illinois University"]
[{"$nulls":6},"Southern Utah University"]
[{"$nulls":6},"Southwest Conservation Corps"]
[{"$nulls":6},"Spring Mountain Youth Camp (SMYC)"]
[{"$nulls":6},"St. Francis University "]
[{"$nulls":6},"Standing Rock Sioux Tribe"]
[{"$nulls":6},"State of Pennsylvania"]
[{"$nulls":6},"Student Conservation Association"]
[{"$nulls":6},"Sturgis Brown High School"]
[{"$nulls":6},"Summer of Success Youth Jobs Program"]
[{"$nulls":6},"Tahoe Heritage Foundation"]
[{"$nulls":6},"Texas A&M University"]
[{"$nulls":6},"Texas Conservation Corps"]
[{"$nulls":6},"Timber Lake Job Corps"]
[{"$nulls":6},"Training and Employment Consortium"]
[{"$nulls":6},"Trapper Creek Job Corps"]
[{"$nulls":6},"Tree Trust"]
[{"$nulls":6},"Trout Unlimited"]
[{"$nulls":6},"Tuskegee University"]
[{"$nulls":6},"Uinta County, Utah "]
[{"$nulls":6},"Umpqua Watersheds Inc. "]
[{"$nulls":6},"Unity College"]
[{"$nulls":6},"University of Florida"]
[{"$nulls":6},"University of Lincoln College"]
[{"$nulls":6},"University of Louisiana Lafayette"]
[{"$nulls":6},"University of New Hampshire"]
[{"$nulls":6},"University of Texas Pan American"]
[{"$nulls":6},"University of Texas San Antonio"]
[{"$nulls":6},"University of Vermont "]
[{"$nulls":6},"University of Wisconsin"]
[{"$nulls":6},"Urban Connections"]
[{"$nulls":6},"Urban Conservation Corps"]
[{"$nulls":6},"US Department of Veterans Affairs"]
[{"$nulls":6},"US Fish and Wildlife Services"]
[{"$nulls":6},"USDA 1890 National Scholars Program"]
[{"$nulls":6},"Utah Conservation Corps "]
[{"$nulls":6},"Utah Workforce Services"]
[{"$nulls":6},"Ventana Wilderness Alliance"]
[{"$nulls":6},"Vermillion Community College"]
[{"$nulls":6},"Vermont Youth Conservation Corps"]
[{"$nulls":6},"Vet Works"]
[{"$nulls":6},"Veteran Administration"]
[{"$nulls":6},"Veterans Green Corps"]
[{"$nulls":6},"Vincennes University"]
[{"$nulls":6},"Vinton Furnace EF, OH"]
[{"$nulls":6},"Vinton Furnace Experimental Forest"]
[{"$nulls":6},"Washington Conservation Corps"]
[{"$nulls":6},"Washington State University - Wenatchee"]
[{"$nulls":6},"Washington Trails Association"]
[{"$nulls":6},"Watershed Education Network"]
[{"$nulls":6},"Watershed Institute"]
[{"$nulls":6},"Weber Basin Job Corps"]
[{"$nulls":6},"Weber Basin Water Conservancy District"]
[{"$nulls":6},"Wellness Coalition"]
[{"$nulls":6},"West Virginia University "]
[{"$nulls":6},"Western Colorado Conservation Corps"]
[{"$nulls":6},"Western Michigan University"]
[{"$nulls":6},"Westminster College"]
[{"$nulls":6},"White Mountain Youth Corps"]
[{"$nulls":6},"White Pass High School"]
[{"$nulls":6},"Wilderness Inquiry"]
[{"$nulls":6},"Wildlife Unlimited of Delta County "]
[{"$nulls":6},"Williston High School - Rough Creek Institute"]
[{"$nulls":6},"Wisconsin Historical Society"]
[{"$nulls":6},"Wolf Creek Environmental Learning Center"]
[{"$nulls":6},"Wolf Creek Job Corps"]
[{"$nulls":6},"Woods Project"]
[{"$nulls":6},"Yaak Valley Forest Council"]
[{"$nulls":6},"Yavapai County Educational Service Organization"]
[{"$nulls":6},"Youth Conservation Corps"]
[{"$nulls":6},"Yurok Tribe"]

{"sheet":"21CSC-Members","index":5,"n_rows":181,"n_cols":4,"rows_kept":181,"hidden":true,"merged":[[2,1,2,3]]}
[]
[]
[null,"21CSC MEMBERS"]
[]
[]
[]
[null,"Organization Name","City","State"]
[null,"Mobile Works, Inc. ","Mobile","Alabama"]
[null,"West-Mid Alabama Community Development Corporation, Inc. ","Emelle","Alabama "]
[null,"Alaska Geographic","Anchorage","Alaska "]
[null,"Anchorage Park Foundation ","Anchorage","Alaska "]
[null,"Southeast Alaska Guidance Association (SAGA)","Juneau ","Alaska "]
[null,"Angoon Community Association","Angoon","Alaska "]
[null,"American Conservation Experience","Flagstaff","Arizona"]
[null,"Arizona Conservation Corps ","Flagstaff","Arizona"]
[null,"White Mountain Youth Corps (WMYC)","Lakeside","Arizona"]
[null,"California Conservation Corps","Sacramento","California"]
[null,"Civic Assets","Berkeley","California"]
[null,"Civicorps Corpsmember Academy","Oakland","California"]
[null,"Conservation Corps North Bay","San Rafael","California"]
[null,"Conservation Corps of Long Beach","Long Beach","California"]
[null,"FIELD- Kern Service and Conservation Corps","Tehachapi","California"]
[null,"Fresno Economic Opportunities Commission","Fresno","California"]
[null,"Los Angeles Conservation Corps ","Los Angeles","California"]
[null,"Orange County Conservation Corps","Anaheim","California"]
[null,"Outward Bound Adventures","Pasadena","California"]
[null,"Oxnard City Corps ","Oxnard","California"]
[null,"Sacramento Regional Conservation Corps ","Sacramento","California"]
[null,"San Francisco Conservation Corps","San Francisco","California"]
[null,"San Gabriel Valley Conservation & Service Corps","El Monte","California"]
[null,"San Joaquin Regional Conservation Corps ","Stockton","California"]
[null,"San Jose Conservation Corps and Charter School","San Jose","California"]
[null,"Sequoia Community Corps","Visalia","California"]
[null,"Sonoma County Youth Ecology Corps","Santa Rosa","California"]
[null,"Urban Conservation Corps of the Inland Empire","Riverside","California"]
[null,"Urban Corps of San Diego County","San Diego","California"]
[null,"Colorado Youth Corps Association ","Denver","Colorado"]
[null,"Conservation Legacy","Durango","Colorado"]
[null,"Environment for the Americas","Boulder","Colorado"]
[null,"Geological Society of America","Boulder","Colorado"]
[null,"Job Corps Civilian Conservation Centers","Golden","Colorado"]
[null,"Rocky Mountain Conservancy ","Estes Park","Colorado"]
[null,"Rocky Mountain Youth Corps (Colorado) ","Steamboat Springs","Colorado"]
[null,"Southwest Conservation Corps","Durango","Colorado"]
[null,"Western Colorado Conservation Corps ","Grand Junction","Colorado"]
[null,"Environmental Learning for Kids","Denver","Colorado "]
[null,"Environmental Stewards","Durango","Colorado "]
[null,"Groundwork Denver","Denver","Colorado "]
[null,"HistoriCorps","Denver","Colorado "]
[null,"Larimer County Conservation Corps","Fort Collins","Colorado "]
[null,"Mile High Youth Corps","Denver","Colorado "]
[null,"Weld County Youth Conservation Corps","Greeley","Colorado "]
[null,"Common Ground: The New Haven Ecology Project","New Haven ","Connecticut"]
[null,"The WorkPlace","Bridgeport","Connecticut"]
[null,"Earth Conservation Corps","Washington","DC"]
[null,"Latin American Youth Center (LAYC)","Washington","DC"]
[null,"MobilizeGreen","Washington","DC"]
[null,"National Civilian Community Corps","Washington","DC"]
[null,"Washington People & Parks","Washington","DC"]
[null,"Ecological Society of America (SEEDS)","Washington","DC"]
[null,"Community Training Works, Inc.","Melbourne Beach","Florida"]
[null,"Florida Trail Association","Gainesville","Florida"]
[null,"Greater Miami Service Corps (GMSC)","Miami","Florida"]
[null,"Out of the Ashes Foundation Inc","Miami ","Florida"]
[null,"Greening Youth Foundation","Atlanta","Georgia"]
[null,"National Wildlife Federation (Southeast Office) Atlanta Earth Tomorrow","Atlanta","Georgia"]
[null,"Big Island Invasive Species Committee","Hilo","Hawaii"]
[null,"Hawaii Department Of Land and Natural Resources ","Honolulu","Hawaii"]
[null,"Kupu/Hawaii Youth Conservation Corps","Honolulu","Hawaii"]
[null,"Mauna Kea Watershed Alliance ","Hilo","Hawaii"]
[null,"Council Summer Work Crew","Council","Idaho"]
[null,"Framing Our Community Inc.","Elk City","Idaho"]
[null,"Friends of the Teton River","Driggs ","Idaho"]
[null,"Palouse-Clearwater Environmental Institute","Moscow","Idaho"]
[null,"Selway-Bitterfoot Frank Church Foundation","Boise","Idaho"]
[null,"Youth Employment Program, Inc.","Salmon","Idaho"]
[null,"Youth Conservation Corps","Waukegan","Illinois"]
[null,"Trails for Illinois\n","Homewood","Illinois"]
[null,"The Wetlands Initiative","Chicago","Illinois"]
[null,"Limitless Vistas, Inc.","New Orleans","Louisiana"]
[null,"Louisiana Green Corps","New Orleans","Louisiana"]
[null,"Maine Conservation Corps","Augusta","Maine"]
[null,"Chesapeake Conservation Corps","Annapolis","Maryland"]
[null,"CivicWorks","Baltimore","Maryland"]
[null,"Maryland Conservation Corps","Annapolis","Maryland"]
[null,"Southwest Boston Community Development Corporation","Hyde Park","Massachusetts"]
[null,"Appalachian Mountain Club ","Boston","Massachusetts "]
[null,"Groundwork Lawrence","Lawrence","Massachusetts "]
[null,"Groundwork Somerville","Somerville","Massachusetts "]
[null,"SEEDS Youth Conservation Corps","Traverse City","Michigan"]
[null,"The Greening of Detroit","Detroit","Michigan"]
[null,"Conservation Corps Minnesota & Iowa","Saint Paul","Minnesota"]
[null,"Minnesota Pollution Control Agency","St. Paul","Minnesota"]
[null,"Tree Trust","St. Louis Park","Minnesota"]
[null,"Vermilion Community College","Ely","Minnesota"]
[null,"Wilderness Inquiry","Minneapolis","Minnesota"]
[null,"Northern Bedrock Historic Preservation Corps","Duluth","Minnesota "]
[null,"Missouri State Parks Youth Corps","Jefferson City","Missouri"]
[null,"Forest Park Forever","St. Louis","Missouri"]
[null,"Bob Marshall Wilderness Foundation ","Hungry Horse","Montana"]
[null,"Montana Discovery Foundation","Helena","Montana"]
[null,"Montana State Parks AmeriCorps","Helena","Montana"]
[null,"Montana Wilderness Association","Helena","Montana"]
[null,"Montana Wilderness Institute","Missoula","Montana"]
[null,"National Forest Foundation","Missoula","Montana"]
[null,"Watershed Education Network","Missoula","Montana"]
[null,"Montana Conservation Corps","Bozeman","Montana "]
[null,"Great Basin Institute ","Reno","Nevada"]
[null,"Nevada Outdoor School","Winnemucca","Nevada"]
[null,"University of Nevada Bootstraps Program","Battle Mountain","Nevada"]
[null,"New Jersey Youth Corps","Trenton","New Jersey"]
[null,"The Work Group- New Jersey Youth Corps-Camden","Pennsauken","New Jersey"]
[null,"Forest Guild","Santa Fe","New Mexico"]
[null,"Groundwork Dona Ana County","La Cruces","New Mexico"]
[null,"Rocky Mountain Youth Corps (New Mexico)","Ranchos de Taos","New Mexico"]
[null,"Santa Fe YouthWorks","Santa Fe","New Mexico"]
[null,"Sovereign Nations Service Corps","Mescalero","New Mexico"]
[null,"Talking Talons","Tijeras","New Mexico"]
[null,"The Wellness Coalition","Silver City","New Mexico"]
[null,"Green City Force","Brooklyn ","New York"]
[null,"Groundwork USA","Yonkers","New York"]
[null,"The Green Schools Alliance","New York","New York"]
[null,"The Green Schools Alliance","New York","New York"]
[null,"The Rockaway Waterfront Alliance","Far Rockaway","New York"]
[null,"The Nature Conservancy (LEAF)","New York","New York"]
[null,"Groundwork Hudson Valley","Yonkers","New York "]
[null,"National Association of State Park Directors ","Raleigh","North Carolina"]
[null,"Groundwork Cincinnati/Mill Creek","Cincinnati","Ohio"]
[null,"Lawn Life","Cincinnati","Ohio"]
[null,"National Center for Science and Civic Engagement (GLISTEN)","Cleveland","Ohio"]
[null,"WSOS Community Action Commission, Inc. ","Fremont","Ohio"]
[null,"Caldera ","Portland","Oregon"]
[null,"Central Oregon Intergovernmental Council ","Bend","Oregon"]
[null,"Central Oregon Intergovernmental Council Region 11","Klamath Falls","Oregon"]
[null,"Coos Watershed Association ","Charleston","Oregon"]
[null,"Heart of Oregon Corps","Bend","Oregon"]
[null,"Lane-Metro Youth Corps (LMYC)","Eugene","Oregon"]
[null,"Lomakatsi Restoration Project","Ashland ","Oregon"]
[null,"McKenzie River Ranger District","McKenzie Bridge","Oregon"]
[null,"North Fork John Day Watershed Council","Long Creek","Oregon"]
[null,"Northwest Youth Corps","Eugene","Oregon"]
[null,"Phoenix School of Roseburg","Roseburg","Oregon"]
[null,"Project YESS Youth Conservation Corps","Gresham","Oregon"]
[null,"Siskiyou Mountain Club","Ashland","Oregon"]
[null,"Student Conservation Association","Long Creek","Oregon"]
[null,"Tillamook School District No.9","Tillamook ","Oregon"]
[null,"Wilderness International Youth Conservation Corps ","Canby","Oregon"]
[null,"Sumter County Youthbuild Program ","Sumter","South Carolina"]
[null,"City of Chattanooga","Chattanooga","Tennessee"]
[null,"Southeast Youth Corps","Chattanooga","Tennessee"]
[null,"Southern Appalachian Wilderness Stewards","Tellico Plains","Tennessee"]
[null,"SER- Jobs for Progress National, Inc. ","Irving","Texas"]
[null,"SER-Jobs for Progress of the Texas Gulf Coast Inc. ","Houston","Texas"]
[null,"Texas Conservation Corps","Austin","Texas"]
[null,"Canyon Country Youth Corps","Monticello","Utah"]
[null,"Grand Staircase Escalante Partners","Kanab","Utah"]
[null,"Southern Utah University Intergovernmental Internship Cooperative","Cedar City","Utah"]
[null,"Utah Conservation Corps","Logan","Utah"]
[null,"NorthWoods Conservation Corps","East Charleston","Vermont"]
[null,"Vermont Youth Conservation Corps","Richmond","Vermont"]
[null,"The Green Mountain Club","Waterbury Center","Vermont"]
[null,"Appalachian Trail Conservancy","Blacksburg","Virginia"]
[null,"Pathways","Petersburg","Virginia"]
[null,"Virginia Department of Conservation and Recreation Division of State Parks ","Richmond","Virginia"]
[null,"Virginia Service and Conservation Corps","Richmond","Virginia"]
[null,"EarthCorps","Seattle","Washington"]
[null,"Kwiaht","Lopez","Washington"]
[null,"Lopez Island Conservation Corps","Lopez Island","Washington"]
[null,"Mt. Adams Institute","Trout Lake","Washington"]
[null,"Pacific Northwest Trail Association","Sedro-Woolley","Washington"]
[null,"Washington Conservation Corps","Olympia","Washington"]
[null,"Citizens Conservation Corps of W Virginia","Beckley","West Virginia"]
[null,"Friends of Sylvania","Madison","Wisconsin"]
[null,"Great Lakes Community Conservation Corps","Milwaukee","Wisconsin"]
[null,"Groundwork Milwaukee ","Milwaukee","Wisconsin"]
[null,"Milwaukee Community Service Corps (MCSC)","Milwaukee","Wisconsin"]
[null,"Northland College","Ashland","Wisconsin"]
[null,"Operation Fresh Start, Inc.","Madison","Wisconsin"]
[null,"WisCorps","La Crosse","Wisconsin"]
[null,"Wyoming Conservation Corps","Laramie","Wyoming"]
[null,"Yellowstone Youth Corps","Yellowstone National Park","Wyoming"]